Cogmind - Beta 10.1 @@@ ROGUE MODE // 2020.10.23 @ 00:47:50 Player: Another0x1treads Result: Escaped singularity! Performance ------------- Evolutions (9) 4500 Regions Visited (35) 7000 Robots Destroyed (587) 2935 Value Destroyed (30201) 30201 Prototype IDs (143) 2860 Alien Tech Used (15) 3000 Bonus (48393) 48393 TOTAL SCORE: 98889 Bonus ------- High Alert Combat Kills 3169 Follower Combat Kills 742 Network Hubs Disabled 200 Aligned with FarCom 300 Met Zhirov 300 Met Warlord at Base 500 MAIN.C Attacked Warlord 500 Warlord Defense Kill 726 Used Core Reset Matrix 3000 Met R17 at Research 2000 Met Warlord at Research 2000 Destroyed MAIN.C Guards 500 Met MAIN.C 5000 Destroyed MAIN.C Shell 5000 Destroyed MAIN.C 10000 Met Architect 300 Destroyed A8 300 Destroyed A6 400 Destroyed Architect 15000 Win 3000 Friendly Fire -4544 Cogmind --------- Core Integrity 479/1600 Matter 233/300 Energy 98/100 System Corruption 0% Temperature Cool (0) Movement Core (50) Location Near Former Tau Ceti IV Parts ------- > --- POWER (2) -------- (None) > --- PROPULSION (4) --- (None) > --- UTILITY (16) ----- Experimental Target Analyzer > --- WEAPON (4) ------- (None) > --- INVENTORY (4) ---- Advanced Heavy Siege Treads Sigix Terminator Peak State ------------ > --- POWER ------------ Vortex Chain Reactor > --- PROPULSION ------- Advanced Heavy Treads Advanced Heavy Siege Treads > --- UTILITY ---------- Desublimator High-capacity Storage Unit High-capacity Storage Unit High-capacity Storage Unit Experimental Targeting Computer Experimental Targeting Computer Experimental Target Analyzer Advanced Armor Integrity Analyzer Advanced Kinecellerator Experimental Weapon Cycler Experimental Phase Shifter Heavy Regenerative Plating Phase Armor AEGIS Remote Shield > --- WEAPON ----------- Enhanced Nova Cannon Enhanced Nova Cannon Graviton Cannon Graviton Cannon > --- INVENTORY -------- Zero-point Reactor Zero-point Reactor Advanced Heavy Siege Treads Experimental Biometal Leg Desublimator Experimental Coolant Injector Experimental Energy Well Experimental Matter Compressor Experimental Optical Array Advanced Salvage Targeting Computer Experimental Targeting Computer Experimental Targeting Computer Advanced Armor Integrity Analyzer Improved Kinecellerator Experimental Weapon Cycler Experimental Focal Shield AEGIS Remote Shield Phase Redirector Long-range Tractor Beam Transdimensional Reconstructor Neutron Cannon Enhanced Nova Cannon Hypervelocity Linear Accelerator Graviton Cannon Graviton Cannon Sigix Terminator [Rating: 244] Favorites ----------- Power Quantum Reactor Engine Improved Ion Engine Power Core Micro Fission Core Reactor Quantum Reactor Propulsion Centrium Heavy Treads Treads Centrium Heavy Treads Leg Carbon-fiber Leg Wheel Compact Wheel Utility High-capacity Storage Unit Device Long-range Sensor Array Storage High-capacity Storage Unit Processor Experimental Signal Interpreter Hackware Advanced Hacking Suite Protection Heavy Regenerative Plating Artifact Phase Armor Weapon Improved KE Penetrator Energy Gun Gamma Rifle Energy Cannon Heavy Neutron Cannon Ballistic Gun Improved KE Penetrator Ballistic Cannon Hypervelocity Gauss Cannon Launcher Rocket Array Special Weapon Mining Laser Impact Weapon Power Maul Special Melee Weapon Advanced Datajack Build | -11 -10 -9 -9 -9 -8 -8 -7 -7 -6 -6 -6 -6 -6 -6 -6 -5 -5 -5 -5 -5 -5 -4 -4 -4 -4 -4 -3 -3 -3 -2 -2 -2 -1 -1 -1 ------- Run | Scr Mat Mat Min Exi Min Mat Fac Sto Fac Was Fac Ext Cet Arc Hub Fac Was Fac Upp Upp War Pro Fac Upp Upp Zhi Pro Res Qua Res Tes Sec Acc Com Ac0 Slots Evolved 18 | . . 2 . . . 2 2 . 2 . . . . . . 2 . . . . . . 2 . . . . 2 . 2 . . 2 . . Power 1 | . . . . . . . . . . . . . . . . . . . . . . . 1 . . . . . . . . . . . . Propulsion 2 | . . . . . . . 1 . 1 . . . . . . . . . . . . . . . . . . . . . . . . . . Utility 13 | . . . . . . 2 1 . 1 . . . . . . 2 . . . . . . 1 . . . . 2 . 2 . . 2 . . Weapon 2 | . . 2 . . . . . . . . . . . . . . . . . . . . . . . . . . . . . . . . . Parts Attached 925 | 8 28 30 . 1 . 9 13 26 30 8 36 21 19 9 5 13 15 57 22 6 16 10 54 22 7 8 12 25 75 60 27 27 10 160 56 Power 37 | 1 1 4 . . . . . 3 . 2 . . 3 . . 1 . 1 1 1 2 . 1 2 1 1 . 1 . 1 1 . . 9 . Engine 10 | 1 1 4 . . . . . 3 . . . . . . . . . . . . . . . . . . . . . . . . . 1 . Core 4 | . . . . . . . . . . . . . . . . . . 1 . 1 . . . 2 . . . . . . . . . . . Reactor 23 | . . . . . . . . . . 2 . . 3 . . 1 . . 1 . 2 . 1 . 1 1 . 1 . 1 1 . . 8 . Propulsion 68 | 2 1 4 . . . 3 1 6 10 3 . 4 4 . . . . 1 1 . 1 . 3 . . . . 2 6 3 2 . . 9 2 Treads 54 | 2 1 4 . . . 3 1 6 1 3 . 2 4 . . . . 1 1 . 1 . 1 . . . . 2 6 3 2 . . 8 2 Leg 4 | . . . . . . . . . 2 . . 2 . . . . . . . . . . . . . . . . . . . . . . . Wheel 10 | . . . . . . . . . 7 . . . . . . . . . . . . . 2 . . . . . . . . . . 1 . Hover . | . . . . . . . . . . . . . . . . . . . . . . . . . . . . . . . . . . . . Flight . | . . . . . . . . . . . . . . . . . . . . . . . . . . . . . . . . . . . . Utility 515 | 2 5 4 . 1 . 3 5 5 12 3 12 9 6 9 3 8 12 34 15 3 12 8 33 18 6 4 12 17 34 47 16 25 10 82 40 Device 338 | 1 1 . . . . . 1 2 5 2 9 5 4 5 1 5 10 17 14 2 7 4 27 15 6 2 6 11 24 28 13 20 9 52 30 Storage 60 | . 3 1 . 1 . . 2 . 2 . 2 2 . 2 . . . 1 . . 3 . . 1 . 2 4 1 2 15 3 3 . 9 1 Processor 20 | 1 . . . . . . . . 1 1 . . . . . . . . . . 1 . 2 . . . 1 1 1 2 . 1 . 6 2 Hackware 13 | . . . . . . . . . . . 1 . . . . 1 . 4 . . . . 1 . . . . 4 . . . . 1 1 . Protection 75 | . 1 3 . . . 3 2 3 4 . . 2 2 2 2 2 2 12 1 1 1 4 3 2 . . 1 . 5 2 . 1 . 9 5 Artifact 9 | . . . . . . . . . . . . . . . . . . . . . . . . . . . . . 2 . . . . 5 2 Weapon 305 | 3 21 18 . . . 3 7 12 8 . 24 8 6 . 2 4 3 21 5 2 1 2 17 2 . 3 . 5 35 9 8 2 . 60 14 Energy Gun 19 | 1 5 . . . . . . 1 . . 1 . . . . . . . . . . . . . . . . . . . . . . 11 . Energy Cannon 39 | . 2 . . . . . . . . . 1 1 1 . . . . . . . . . 3 . . . . . 6 3 3 1 . 10 8 Ballistic Gun 167 | 2 9 13 . . . 2 5 7 6 . 12 7 4 . 1 2 2 12 3 . 1 2 4 1 . 3 . 3 23 6 3 . . 33 1 Ballistic Cannon 19 | . . . . . . . . . . . . . . . . 1 . 1 . . . . 6 . . . . . . . 1 . . 5 5 Launcher 16 | . . 1 . . . . 1 2 2 . 5 . 1 . . . 1 . 1 . . . . . . . . . . . . 1 . 1 . Special Weapon 10 | . 5 4 . . . . . . . . . . . . . 1 . . . . . . . . . . . . . . . . . . . Impact Weapon 33 | . . . . . . 1 1 2 . . 5 . . . 1 . . 8 1 2 . . 2 1 . . . 2 6 . 1 . . . . Slashing Weapon . | . . . . . . . . . . . . . . . . . . . . . . . . . . . . . . . . . . . . Piercing Weapon . | . . . . . . . . . . . . . . . . . . . . . . . . . . . . . . . . . . . . Special Melee Weapon 2 | . . . . . . . . . . . . . . . . . . . . . . . 2 . . . . . . . . . . . . Unidentified Prototypes 47 | . . . . . . . . 4 2 . . . 5 . . . . . . . 5 1 2 . 1 3 . . 3 2 2 1 . 14 2 Parts Lost 60 | . 1 2 . . . . 1 2 8 . 11 . 1 . 2 . . 4 1 . . 2 . 1 1 . 3 . 1 . . . . 10 9 Power 7 | . . 2 . . . . . . 1 . . . . . 1 . . . . . . . . . 1 . . . . . . . . 2 . Propulsion 13 | . . . . . . . . 1 5 . 1 . 1 . . . . 1 . . . . . . . . . . . . . . . 2 2 Utility 19 | . 1 . . . . . 1 1 1 . 1 . . . . . . 2 1 . . 2 . 1 . . 3 . . . . . . 2 3 Weapon 21 | . . . . . . . . . 1 . 9 . . . 1 . . 1 . . . . . . . . . . 1 . . . . 4 4 Highest Loss Streak 4 | . 1 1 . . . . 1 1 3 . 3 . 1 . 2 . . 1 1 . . 2 . 1 1 . 3 . 1 . . . . 2 4 Average Slot Usage (%) 84 | . 99 97 100 89 88 82 86 91 84 82 79 70 87 85 85 85 86 87 81 78 76 64 78 82 88 72 89 94 88 88 89 82 82 82 81 Engine 1 | . 14 8 11 11 11 9 7 7 4 . . . . . . . . . . . . . . . . . . . . . . . . . . Core 1 | . . . . . . . . . . . . . . . . . . 2 4 . 2 . . 3 5 5 5 . . . . . . . . Reactor 3 | . . . . . . . . . . 2 6 6 6 6 5 5 5 2 . 4 2 5 5 1 4 5 5 8 9 8 7 4 3 5 3 Treads 11 | . 27 22 22 22 22 18 23 22 14 5 12 11 16 13 13 11 11 10 11 11 11 11 9 5 5 5 5 8 11 8 8 8 7 6 6 Device 11 | . 2 . . . . . 2 7 6 10 6 9 5 11 4 6 15 7 16 12 9 . 14 14 23 19 11 16 11 16 13 9 10 12 18 Storage 16 | . 12 11 11 10 11 9 14 7 12 13 13 18 20 20 26 23 23 23 17 17 20 17 15 13 10 12 22 16 19 17 18 16 15 17 13 Processor 7 | . 5 . . . . . . . 3 8 6 6 6 6 6 5 5 5 5 5 5 5 5 6 5 5 5 9 4 10 16 17 18 14 15 Hackware 1 | . . . . . . . . . . . 4 . . . . . . 4 . . . . 2 . . . . 8 9 5 4 4 6 . . Protection 4 | . 6 11 11 1 . 10 7 14 5 . . 1 5 . 2 7 . 3 5 7 5 10 4 5 5 5 4 1 3 3 4 3 3 5 3 Ballistic Gun 16 | . 21 43 44 44 44 35 29 29 25 26 22 3 13 26 25 22 17 20 16 4 2 . 3 17 14 . 15 14 15 15 13 8 7 10 8 Naked Turns . | . . . . . . . . . . . . . . . . . . . . . . . . . . . . . . . . . . . . Heaviest Build 288 | 8 41 38 38 99 99 114 118 131 167 154 216 177 159 179 179 182 221 186 164 172 186 170 186 178 141 170 171 181 237 237 224 239 240 257 288 Greatest Support 174 | 40 40 40 40 40 40 42 62 62 80 140 140 120 160 160 160 160 160 160 160 160 160 150 150 70 26 26 26 124 140 150 170 170 170 174 150 Greatest Overweight (x) 47 | . 1 . . 2 2 2 1 3 11 4 3 2 1 47 1 1 1 1 44 1 1 1 6 6 5 6 6 6 1 1 1 1 1 3 1 Average Overweight (x) 2 | . . . . 1 2 2 1 1 4 2 1 1 . 16 . 1 1 . 18 . . . . 5 4 4 5 3 1 1 1 1 1 1 . Largest Inventory Capacity 52 | 4 16 16 10 24 24 24 24 24 52 32 48 48 28 36 36 36 36 36 36 28 36 28 28 28 20 28 28 28 36 36 36 36 36 36 36 Average Capacity 29 | 4 9 10 10 22 24 24 24 24 32 32 32 32 28 28 36 36 36 36 28 28 30 28 28 24 20 24 28 28 35 36 36 36 36 35 33 Most Carried 36 | 4 11 10 10 24 24 24 24 24 31 32 31 27 28 36 35 34 34 34 30 28 35 28 28 25 20 26 28 28 36 36 36 36 31 36 36 Average Carried 27 | . 8 9 9 18 23 23 22 23 29 30 28 24 26 28 35 31 31 29 26 25 26 25 23 20 15 22 25 26 34 33 35 32 29 32 32 Final Capacity 48 | 4 16 10 10 24 24 24 24 24 32 32 48 28 28 36 36 36 36 36 28 28 28 28 28 20 20 28 28 28 36 36 36 36 36 36 4 Final Carried 36 | 4 11 10 10 24 24 23 22 24 31 31 24 26 28 35 35 31 31 28 24 28 28 22 25 18 20 22 23 28 36 35 34 31 29 36 4 Class Distribution -------------------- 14% | Alien-Gunner 12% | Scavenger-Skirmisher 11% | Scavenger-Gunner 11% | Hauler-Skirmisher 10% | Hauler-Tank 10% | Hauler-Mutant 6% | Hauler-Gunner 5% | Hauler-Assassin 4% | Scavenger-Tank 4% | Alien-Mutant 3% | Mutant Dominant Class ---------------- Mutant | -10/Materials Tank | -9/Materials Tank | -9/Mines Hauler-Gunner | -9/Exiles Hauler-Skirmisher | -8/Mines Hauler-Skirmisher | -8/Materials Hauler-Tank | -7/Factory Scavenger-Tank | -7/Storage Scavenger-Tank | -6/Factory Hauler-Gunner | -6/Waste Hauler-Skirmisher | -6/Factory Hauler-Mutant | -6/Extension Hauler-Mutant | -6/Cetus Scavenger-Gunner | -6/Archives Hauler-Skirmisher | -6/Hub_04(d) Hauler-Skirmisher | -5/Factory Hauler-Skirmisher | -5/Waste Hauler-Gunner | -5/Factory Scavenger-Skirmisher | -5/Upper Caves Hauler-Assassin | -5/Upper Caves Hauler-Assassin | -5/Warlord Hauler-Mutant | -4/Proximity Caves Hauler-Skirmisher | -4/Factory Hauler-Assassin | -4/Upper Caves Hauler-Assassin | -4/Upper Caves Hauler-Mutant | -4/Zhirov Hauler-Tank | -3/Proximity Caves Hacker-Assassin | -3/Research Hauler-Tank | -3/Quarantine Hauler-Tank | -2/Research Hauler-Mutant | -2/Testing Alien-Mutant | -2/Section 7 Alien-Mutant | -1/Access Alien-Gunner | -1/Command Alien-Gunner | -1/Access_0 Resources | -11 -10 -9 -9 -9 -8 -8 -7 -7 -6 -6 -6 -6 -6 -6 -6 -5 -5 -5 -5 -5 -5 -4 -4 -4 -4 -4 -3 -3 -3 -2 -2 -2 -1 -1 -1 ----------- Run | Scr Mat Mat Min Exi Min Mat Fac Sto Fac Was Fac Ext Cet Arc Hub Fac Was Fac Upp Upp War Pro Fac Upp Upp Zhi Pro Res Qua Res Tes Sec Acc Com Ac0 Matter Collected 28634 | 394 425 787 74 200 47 383 571 1717 1318 440 1408 547 251 1104 216 392 536 1945 636 216 200 261 1624 515 403 40 323 407 2124 1637 818 871 53 3985 1766 Remotely 8266 | . . . . . . . . . 419 410 200 . 50 294 . . 241 524 90 . . . 279 423 114 40 . . 883 673 552 452 . 1282 1340 Salvage Created 36736 | 316 623 934 118 . . 677 744 2423 1377 1546 1442 456 383 630 280 253 1587 3136 603 156 425 245 1824 423 259 116 641 548 2805 1765 1860 908 97 4764 2372 Parts 1643 | 24 39 54 14 . . 41 40 112 75 38 74 15 29 44 8 16 25 130 19 3 16 6 71 26 7 . 24 10 177 59 94 43 10 178 122 Haulers Intercepted 23 | . 2 3 . . . 2 1 5 2 . . . . . 1 . . 1 . . . . 2 . . . . 3 . . . 1 . . . Recyclers Shooed 16 | 1 1 2 . . . 1 1 1 3 . 2 . . . . . . 1 . . . . 1 . . . . . . . 2 . . . . Parts Field Recycled . | . . . . . . . . . . . . . . . . . . . . . . . . . . . . . . . . . . . . Retrieved Matter . | . . . . . . . . . . . . . . . . . . . . . . . . . . . . . . . . . . . . Parts Self-Destructed 182 | . . . . . . . . . . . . . . . . . . . 23 . 113 3 . 14 6 . 23 . . . . . . . . Prevented 9 | . . . . . . . . . . . . . . . . . . . . . 4 5 . . . . . . . . . . . . . Kills | -11 -10 -9 -9 -9 -8 -8 -7 -7 -6 -6 -6 -6 -6 -6 -6 -5 -5 -5 -5 -5 -5 -4 -4 -4 -4 -4 -3 -3 -3 -2 -2 -2 -1 -1 -1 ------- Run | Scr Mat Mat Min Exi Min Mat Fac Sto Fac Was Fac Ext Cet Arc Hub Fac Was Fac Upp Upp War Pro Fac Upp Upp Zhi Pro Res Qua Res Tes Sec Acc Com Ac0 Combat Hostiles Destroyed 431 | . 15 17 7 . . 14 10 34 23 5 23 4 9 4 . 4 6 31 9 . 7 3 18 11 3 . 9 . 33 21 19 14 2 51 25 Melee 2 | . . . . . . . . 1 . . . . . . . . . . . . . . . . . . . . 1 . . . . . . Guns 350 | . 13 14 7 . . 14 10 33 18 5 13 4 1 4 . 4 4 31 8 . 7 1 2 11 3 . 8 . 32 21 18 5 1 36 22 Cannons 44 | . 1 . . . . . . . . . . . . . . . 2 . . . . . 16 . . . . . . . . 8 1 13 3 AOE 27 | . . 3 . . . . . . 5 . 10 . 8 . . . . . . . . 1 . . . . . . . . . . . . . Classes Destroyed 28 | 3 4 2 . . . 1 2 1 1 1 1 . . 1 . . . . . 1 1 2 . . . . . . 1 4 2 . . . . Worker 38 | 2 2 3 . . . 1 1 3 1 . . . . . 4 1 . 8 . . . . 1 . . . . 2 . . . . . 9 . Builder 19 | . . . . . . . . . 2 . 3 . . . 1 . . 5 . . . . 7 . . . . . 1 . . . . . . Tunneler 11 | 8 . . . . . . 1 . . . . . . . . . . 1 . . . . . . . . . 1 . . . . . . . Hauler 23 | . 2 3 . . . 2 1 5 2 . . . . . 1 . . 1 . . . . 2 . . . . 3 . . . 1 . . . Recycler 24 | 1 . 2 . . . . 1 3 . . 2 1 . . . . . 5 . . . . 4 . . . . 1 1 . 1 . . 2 . Minesweeper 2 | . . . . . . . . . . . . . . . . . . . . 1 . . . . . . 1 . . . . . . . . Mechanic 2 | . . . . . . . . . . . 1 . . . . . . . . . . . . . . . . 1 . . . . . . . Operator 14 | . . . . . . . . . . . . . . 7 1 . . . . . . . 2 . . . . 1 2 . 1 . . . . Watcher 12 | . 1 . . . . . 1 2 . . . . 2 . 1 . . . . . . . 1 . . . . . 1 . 2 . . 1 . Swarmer 67 | . 6 7 7 . . 4 2 3 4 . 6 . 3 . . . . . . . . . 4 5 . . . . 3 2 . . . 11 . Saboteur 2 | . . . . . . . . . . . . . . . . . . . . . 1 . . . . . . . . . . . . 1 . Grunt 146 | . 9 6 . . . 6 . 18 11 . 12 3 . . . 3 . 16 7 . 2 . 5 2 3 . 7 . 12 2 4 3 . 15 . Brawler 8 | . . 1 . . . 1 1 1 . . . . . . . . . 1 . . 2 . . . . . . . 1 . . . . . . Duelist 6 | . . . . . . . 1 . . . . . . . . 1 . . 1 . 1 . . . . . . . . . 1 . . 1 . Protector 2 | . . . . . . . . 1 . . . . . . . . . . . . 1 . . . . . . . . . . . . . . Sentry 51 | . . 3 . . . 2 4 8 3 . 2 1 . 4 . . . 3 1 . . 1 3 1 . . . . 3 5 . 3 . 4 . Demolisher 1 | . . . . . . . . . . . . . . . . . . . . . . . . . . . . . . 1 . . . . . Hunter 29 | . . . . . . 1 1 1 3 . 1 . 2 . . . . 3 . . . . . . . . . . 2 5 3 . . 7 . Programmer 54 | . . . . . . . 1 2 2 . 2 . . . . . . 8 . . . . 6 . . . 1 . 11 . 9 5 2 5 . Behemoth 2 | . . . . . . . . . . . . . . . . . . . . . . 1 . . . . . . . . . . . 1 . Compactor 11 | . . . . . . . . . . 5 . . . . . . 6 . . . . . . . . . . . . . . . . . . Cetus Guard 4 | . . . . . . . . . . . . . 4 . . . . . . . . . . . . . . . . . . . . . . S7 Guard 3 | . . . . . . . . . . . . . . . . . . . . . . . . . . . . . . . . 3 . . . M Guard 2 | . . . . . . . . . . . . . . . . . . . . . . . . . . . . . . . . . . 2 . Enhanced Grunt 16 | . . . . . . . . . . . . . . . . . . . . . . . . . . . . . . . . . . . 16 Enhanced Hunter 7 | . . . . . . . . . . . . . . . . . . . . . . . . . . . . . . . . . . . 7 Combat Programmer 2 | . . . . . . . . . . . . . . . . . . . . . . . . . . . . . . . . . . 2 . Striker 4 | . . . . . . . . . . . . . . . . . . . . . . . . . . . . . . 4 . . . . . Executioner 1 | . . . . . . . . . . . . . . . . . . . . . . . . . . . . . . 1 . . . . . Alpha 7 1 | . . . . . . . . . . . . . . . . . . . . . . . . . . . . . 1 . . . . . . Fortress 1 | . . . . . . . . . . . . . . . . . . . . . . . . . . . . . . . 1 . . . . Decomposer 1 | . . . . . . . . . . . . . . . . . . . . . . . . . 1 . . . . . . . . . . Master Thief 5 | . . . . . . . . . . . . . . . . . . . . . . 1 . 3 . . 1 . . . . . . . . Thug 4 | . . . . . . . . . . 1 . . . . . . . . . 1 2 . . . . . . . . . . . . . . Savage 1 | . . . . . . . . . . . . . . . . . . . . 1 . . . . . . . . . . . . . . . Guerrilla 4 | . . . . . . . . . . . . 1 3 . . . . . . . . . . . . . . . . . . . . . . Troll 1 | . . . . . . . . . . . . . . . . . . . . . . . . . . . . . . 1 . . . . . Hydra 1 | . . . . . . . . . . . . . . . . . . . . . . . . . . . . . . . 1 . . . . Best Kill Streak 11 | 5 4 6 4 . . 5 3 7 9 3 8 2 5 6 8 5 2 11 5 1 3 1 6 5 3 . 4 2 8 4 5 4 1 11 4 Combat Bots Only 10 | . 3 5 4 . . 4 2 5 8 3 5 2 5 1 . 4 2 4 5 . 3 1 4 5 3 . 4 . 8 4 4 4 1 10 4 Max Kills in Single Turn 7 | 1 2 2 2 . . 2 2 3 3 1 3 2 5 2 7 1 2 2 1 1 1 1 2 2 1 . 2 1 2 1 2 1 1 2 2 Gunslinging 1 | . . 1 1 . . 1 . . 1 . . . . . . . . . . . . . . . . . 1 . 1 . 1 . . 1 1 Exploded 5 | . . 2 . . . . . . 3 . 3 . 5 . . . . . . . . 1 . . . . . . . . . . . . . Melee 1 | . . . . . . . . 1 . . . . . . . . . . . . . . . . . . . . 1 . . . . . . Uniques/NPCs Destroyed 6 | . . . . . . . . . . . . . 1 . . . . . . . . . . . . . . . . . . . . 2 3 A7 (-6/Cetus) MAIN.C Shell (-1/Command) MAIN.C (-1/Command) A8 (-1/Access_0) A6 (-1/Access_0) Architect (-1/Access_0) Combat | -11 -10 -9 -9 -9 -8 -8 -7 -7 -6 -6 -6 -6 -6 -6 -6 -5 -5 -5 -5 -5 -5 -4 -4 -4 -4 -4 -3 -3 -3 -2 -2 -2 -1 -1 -1 -------- Run | Scr Mat Mat Min Exi Min Mat Fac Sto Fac Was Fac Ext Cet Arc Hub Fac Was Fac Upp Upp War Pro Fac Upp Upp Zhi Pro Res Qua Res Tes Sec Acc Com Ac0 Damage Taken 38078 | . 700 524 183 . 36 418 705 1618 2447 . 2355 14 869 105 419 172 . 2536 837 338 223 1853 1353 395 805 . 1144 40 1368 1361 994 579 23 7840 5824 Core 2559 | . 113 38 9 . 18 . 68 105 149 . 128 . 35 . . . . 220 57 102 113 23 46 . 45 . 43 . 58 65 90 40 2 340 652 Absorbed by Shields 17967 | . . . . . . . . 547 90 . . 2 82 . . . . . . . 69 . . . . . . 39 1386 1105 964 612 27 7406 5638 Reduced by Siege Mode 1562 | . . . . . . . . . . . 107 . 64 5 . 4 . 142 72 . . 45 91 23 17 . 43 . 65 155 134 34 . 298 263 Redirected to Core 206 | . . . . . . . . . . . . . . . . . . . . . . . . . . . . . . . . . . . 206 Core Remaining (%) 72 | 100 54 . . . 83 100 . 75 . . . . . . 63 . . . . . . 48 . . . . 88 . 89 . . 73 . . 29 Volleys Fired 1423 | 38 94 47 9 . . 29 32 76 45 17 51 13 24 20 5 8 21 69 14 1 . 9 54 25 8 . 15 9 107 65 44 68 24 233 149 Largest 4 | 1 2 4 4 . . 4 4 4 4 4 4 2 2 4 4 4 4 4 4 1 . 2 4 4 3 . 3 4 4 4 4 4 4 4 4 Hottest 430 | 20 100 100 92 . . 92 97 112 132 132 135 75 75 136 136 136 174 136 132 45 . 76 293 143 105 . 105 140 180 138 138 248 248 365 430 Shots Fired 4428 | 38 171 155 36 . . 116 125 303 161 66 142 26 31 79 16 26 79 254 61 1 61 10 182 92 25 . 47 33 339 230 152 156 27 615 573 Gun 3556 | 38 157 144 36 . . 116 124 303 156 66 122 25 18 79 16 24 57 254 61 . 61 2 29 92 25 . 47 33 314 221 144 72 2 398 320 Cannon 800 | . 5 . . . . . . . . . 2 1 5 . . . 20 . . . . . 153 . . . . . 25 9 8 78 25 216 253 Launcher 54 | . . 4 . . . . 1 . 5 . 18 . 8 . . . 2 . . 1 . 8 . . . . . . . . . 6 . 1 . Special 18 | . 9 7 . . . . . . . . . . . . . 2 . . . . . . . . . . . . . . . . . . . Kinetic 3743 | 38 125 144 36 . . 116 124 303 156 66 110 25 18 79 16 24 77 254 61 . 61 2 137 92 25 . 47 33 314 221 144 99 3 401 392 Thermal 556 | . 14 7 . . . . . . . . 12 . . . . . . . . . . . 45 . . . . . 25 9 8 51 24 180 181 Explosive 40 | . . 4 . . . . 1 . 4 . 12 . 8 . . . 2 . . 1 . 8 . . . . . . . . . . . . . Electromagnetic 87 | . 32 . . . . . . . 1 . 8 1 5 . . . . . . . . . . . . . . . . . . 6 . 34 . Robot Hit Streak 63 | 6 13 14 6 . . 18 21 17 13 28 44 16 24 21 3 24 27 43 16 . 19 18 25 14 11 . 20 8 26 59 27 42 12 34 63 Robot Miss Streak 9 | 2 5 4 3 . . 8 8 8 9 6 3 3 2 1 1 1 1 3 2 . 1 2 3 3 3 . 2 3 3 3 2 1 1 3 3 Penetration Max 2 | . . . . . . . . 1 1 1 . 1 2 1 . . 1 1 1 . . . 1 1 1 . 1 . 2 1 1 1 . 2 2 Secondary Targets 74 | . 1 5 3 . . 3 3 4 4 1 3 . . . . 2 . 11 3 . . . . 1 . . 2 . 5 3 9 . . 6 5 Max Gunslinging Chain 2 | . 1 1 1 . . 1 1 1 2 1 1 . . . . 1 . 1 1 . . . . 1 . . 1 . 1 1 1 . . 2 1 Autonomous 76 | . . . . . . . . . . . . . . . . . . . 15 . 61 . . . . . . . . . . . . . . Shots Hit Robots 3153 | 27 98 92 22 . . 70 89 246 118 41 101 18 37 57 6 24 56 202 48 1 54 10 116 44 16 2 35 23 214 151 119 108 6 415 487 Core Hits 1823 | 12 34 38 7 . . 33 40 214 120 12 90 10 99 25 13 9 11 91 20 4 22 15 41 19 8 1 21 7 99 73 67 49 4 202 313 Critical Hits 588 | 1 . . . . . . 2 2 10 20 20 9 8 14 4 3 21 51 2 . 1 . 46 9 4 . 8 5 87 38 34 22 1 72 94 Critical Kills 173 | 1 . . . . . . . 1 8 5 8 4 3 5 . 1 6 19 2 . 1 . 17 5 1 . 3 2 33 12 9 3 . 12 12 Critical Parts Destroyed 291 | . . . . . . . 2 1 2 4 12 3 3 7 4 2 6 29 . . . . 29 4 3 . 5 3 44 17 20 8 . 39 44 Melee Attacks 154 | . . . . . . 2 1 3 . . 3 4 10 . 1 . . 25 2 5 12 2 17 4 10 2 5 28 10 . 8 . . . . Kinetic 8 | . . . . . . . . . . . . . . . . . . . . . . . . . . . . . . . 8 . . . . Impact 145 | . . . . . . 2 1 3 . . 3 4 10 . 1 . . 25 2 5 12 2 16 4 10 2 5 28 10 . . . . . . Slashing . | . . . . . . . . . . . . . . . . . . . . . . . . . . . . . . . . . . . . Piercing . | . . . . . . . . . . . . . . . . . . . . . . . . . . . . . . . . . . . . Sneak Attacks 35 | . . . . . . . 1 . . . . 3 10 . . . . 6 . 1 . . 5 . 1 . 2 5 1 . . . . . . Combat Hostiles . | . . . . . . . . . . . . . . . . . . . . . . . . . . . . . . . . . . . . Follow-up Attacks . | . . . . . . . . . . . . . . . . . . . . . . . . . . . . . . . . . . . . Damage Inflicted 85527 | 339 1074 1478 297 . 9 1078 1573 4282 2602 408 2405 449 2494 954 1053 431 1562 5802 1250 299 1769 768 2770 1372 545 174 1126 957 3550 3121 3009 3823 305 14325 18074 Guns 55942 | 333 965 1304 297 . . 1066 1380 4221 1642 408 1058 208 138 860 147 431 932 4803 1232 . 1769 68 466 1372 476 . 936 339 3088 3114 2648 1817 40 8250 10134 Cannons 17254 | . 53 . . . . . . . . . . . 153 . . . 242 . . . . . 1536 . . . . . . . 40 1797 251 5336 7846 Explosions 5936 | . . 165 . . . . . . 960 . 1292 . 1473 . 887 . 388 . . . . 624 . . . . . . . . . 87 . 60 . Melee 3868 | . . . . . . . 102 . . . . 234 730 . . . . 689 . 113 . . 634 . 69 174 190 498 114 . 321 . . . . Ramming 2527 | 6 56 9 . . 9 12 91 61 . . 55 7 . 94 19 . . 310 18 186 . 76 134 . . . . 120 348 7 . 122 14 679 94 Kinetic 62259 | 333 662 1304 297 . . 1066 1380 4221 1642 408 946 208 138 860 147 431 1174 4803 1232 . 1769 68 1561 1372 476 . 936 339 3088 3114 2969 2805 40 9951 12519 Thermal 10469 | . 53 . . . . . . . . . 112 . . . . . . . . . . . 441 . . . . . . . 40 809 251 3302 5461 Explosive 4447 | . . 165 . . . . . . 944 . 853 . 1473 . . . 388 . . . . 624 . . . . . . . . . . . . . Electromagnetic 2278 | . 303 . . . . . . . 16 . 439 . 153 . 887 . . . . . . . . . . . . . . . . 87 . 393 . Impact 3547 | . . . . . . . 102 . . . . 234 730 . . . . 689 . 113 . . 634 . 69 174 190 498 114 . . . . . . Slashing . | . . . . . . . . . . . . . . . . . . . . . . . . . . . . . . . . . . . . Piercing . | . . . . . . . . . . . . . . . . . . . . . . . . . . . . . . . . . . . . Highest Corruption 32 | . . . . . . 1 . 3 2 25 27 27 27 27 1 . 19 32 23 . . . 3 6 6 6 9 1 10 . 2 2 . . . Average Corruption 12 | . . . . . . 1 . 2 1 13 25 27 27 16 1 . 16 24 15 . . . 1 3 6 6 6 1 3 . 1 1 . . . Corruption Purged 64 | . . . . . . . . . . . . . . 27 . . . 10 23 . . . . . . . . . . . 2 2 . . . Effects 1031 | . . . . . . 2 . 27 4 20 110 78 36 155 . . 36 217 208 . . . 12 12 28 7 19 6 53 . . 1 . . . Message Errors 190 | . . . . . . . . 4 1 4 24 14 5 31 . . 1 22 50 . . . 5 2 8 5 5 2 7 . . . . . . Matter Fused 160 | . . . . . . . . 5 . 2 8 12 4 34 . . 5 32 35 . . . 1 5 6 . 3 . 8 . . . . . . Heat Flow Errors 93 | . . . . . . . . 2 2 2 6 5 2 22 . . . 15 25 . . . . 1 4 1 1 . 5 . . . . . . Energy Discharges 92 | . . . . . . 1 . 1 . 2 9 6 2 13 . . 1 10 27 . . . 3 2 4 1 1 2 6 . . 1 . . . Parts Rejected 5 | . . . . . . . . . . . 1 . . . . . . 4 . . . . . . . . . . . . . . . . . Data Loss (minor) 107 | . . . . . . . . 5 . . 5 10 1 19 . . 5 12 34 . . . 2 1 3 . 2 1 7 . . . . . . Data Loss (major) 32 | . . . . . . . . . . . 6 1 1 7 . . 2 5 7 . . . . 1 1 . 1 . . . . . . . . Misfires 25 | . . . . . . . . . . 1 3 1 1 5 . . . 5 4 . . . . . 1 . 2 . 2 . . . . . . Alerts 16 | . . . . . . . . . . . 1 . . 4 . . 1 2 6 . . . . . . . . . 2 . . . . . . Misdirections 69 | . . . . . . . . . . 2 12 21 3 2 . . . 21 5 . . . . . . . . . 3 . . . . . . Targeting Errors 204 | . . . . . . 1 . 9 . 4 32 8 14 12 . . 16 76 14 . . . 1 . 1 . 4 1 11 . . . . . . Weapon Failures 38 | . . . . . . . . 1 1 3 3 . 3 6 . . 5 13 1 . . . . . . . . . 2 . . . . . . Overload Shots 1 | . . . . . . . . . . . 1 . . . . . . . . . . . . . . . . . . . . . . . . Overflow Damage 2366 | . . . . . . . 82 . 9 . 72 115 41 14 87 . . 420 4 94 . 4 422 . 56 35 69 336 65 . . 195 37 84 125 Projectiles 345 | . . . . . . . . . . . . . . . . . . . . . . . 13 . . . . . . . . 144 37 51 100 Explosions 167 | . . . . . . . . . 9 . 72 . . . 86 . . . . . . . . . . . . . . . . . . . . Melee 1854 | . . . . . . . 82 . . . . 115 41 14 1 . . 420 4 94 . 4 409 . 56 35 69 336 65 . . 51 . 33 25 Knockbacks 85 | . . . . . . . 1 1 . . 2 . 2 2 . . . 3 1 2 . . 20 . . . 1 5 4 . . 9 . 17 15 Impact 41 | . . . . . . . 1 1 . . 2 . 2 2 . . . 3 1 2 . . 5 . . . 1 5 4 . . 1 . 9 2 Kinetic 42 | . . . . . . . . . . . . . . . . . . . . . . . 14 . . . . . . . . 7 . 8 13 Secondary 2 | . . . . . . . . . . . . . . . . . . . . . . . 1 . . . . . . . . 1 . . . Self-Inflicted Damage 646 | . . . . . . . . . 20 . 348 . . . 106 . . . . 81 . . . . . . . . . . . 91 . . . Shots 21 | . . . . . . . . . 1 . 12 . . . 1 . . . . 3 . . . . . . . . . . . 4 . . . Rammed 172 | 1 14 4 . . 1 2 5 6 1 . 5 1 . 2 2 . . 20 1 15 . 5 7 . . . . 3 24 1 . 3 1 43 5 Targets Rammed 182 | 1 14 4 . . 1 2 6 7 1 . 5 1 . 3 2 . . 21 1 17 . 6 8 . . . . 4 25 1 . 3 1 43 5 Kicked . | . . . . . . . . . . . . . . . . . . . . . . . . . . . . . . . . . . . . Crushed 10 | . . . . . . . 1 1 . . . . . 1 . . . 1 . 2 . 1 1 . . . . 1 1 . . . . . . Highest Temperature 355 | . 78 158 146 . . 72 22 251 355 161 325 289 179 255 120 279 199 343 258 . . 6 198 133 294 117 45 44 270 210 240 275 . 146 132 Average Temperature 72 | . 20 39 65 . . 25 7 61 85 47 69 106 84 95 49 135 107 94 99 . . 2 102 40 130 80 24 27 91 56 77 79 . 43 52 Received Heat Transfer 5085 | . 255 129 . . 18 108 72 672 811 . 345 . 22 . 18 81 . 495 366 . 10 81 111 57 234 . 231 4 141 28 77 44 . 615 60 Effects 3 | . . . . . . . . 1 . . . . . 1 . 1 . . . . . . . . . . . . . . . . . . . Energy Bleed 3 | . . . . . . . . 1 . . . . . 1 . 1 . . . . . . . . . . . . . . . . . . . Siege Activations 143 | . . . . . . . . . . . 10 2 3 4 . 1 5 15 2 . . 2 10 7 1 . 2 1 17 10 6 9 . 18 18 Total Turns 2425 | . . . . . . . . . . . 168 16 30 69 . 24 62 201 32 . . 15 126 63 17 . 41 5 222 135 94 102 . 792 211 Longest Duration 437 | . . . . . . . . . . . 56 10 14 24 . 24 29 28 21 . . 11 25 26 17 . 26 5 52 66 34 50 . 437 29 Robots Corrupted 5 | . 1 . . . . . . . . . . . . . 1 . . . . . . . . . . . . . . . . 1 . 2 . Combat Hostiles 4 | . 1 . . . . . . . . . . . . . . . . . . . . . . . . . . . . . . 1 . 2 . Parts Fried 41 | . 1 . . . . . . . . 1 . 4 . . 1 . . 5 4 . . . 13 . . . 1 5 2 . . 1 . 3 . Impact Corruptions 76 | . . . . . . . 2 . . . . 2 2 1 1 . . 14 1 5 . 1 17 . 5 1 2 11 4 . . 3 . 3 1 Robots Melted . | . . . . . . . . . . . . . . . . . . . . . . . . . . . . . . . . . . . . Combat Hostiles . | . . . . . . . . . . . . . . . . . . . . . . . . . . . . . . . . . . . . Parts Melted 5 | . . . . . . . . . . . 1 . . . . . . . . . 2 . . . . . . . . . . . . 2 . Heat Transferred 5439 | . 111 . . . . . . . . . 222 . . . . . . . . . . . 275 . . . . . . . 25 525 125 2001 2155 Parts Sabotaged . | . . . . . . . . . . . . . . . . . . . . . . . . . . . . . . . . . . . . Parts Stolen 9 | . . . . . . . . . . . . . . . . . . . . . . 1 . 6 . . 2 . . . . . . . . Parts Stripped . | . . . . . . . . . . . . . . . . . . . . . . . . . . . . . . . . . . . . Power Chain Reactions . | . . . . . . . . . . . . . . . . . . . . . . . . . . . . . . . . . . . . Missiles Intercepted . | . . . . . . . . . . . . . . . . . . . . . . . . . . . . . . . . . . . . Alert | -11 -10 -9 -9 -9 -8 -8 -7 -7 -6 -6 -6 -6 -6 -6 -6 -5 -5 -5 -5 -5 -5 -4 -4 -4 -4 -4 -3 -3 -3 -2 -2 -2 -1 -1 -1 ------- Run | Scr Mat Mat Min Exi Min Mat Fac Sto Fac Was Fac Ext Cet Arc Hub Fac Was Fac Upp Upp War Pro Fac Upp Upp Zhi Pro Res Qua Res Tes Sec Acc Com Ac0 Peak Influence 794 | 55 213 456 278 . . 243 325 726 653 191 645 368 495 434 387 332 150 647 . . . . 361 . . . . 59 437 588 772 794 529 648 . Initial 395 | . 35 48 118 . . . 109 147 329 191 119 305 128 198 . 184 116 . . . . . . . . . . 6 6 234 330 369 395 24 . Average 230 | 32 89 204 232 . . 98 172 443 424 175 176 180 319 68 36 258 132 153 . . . . 126 . . . . 25 204 387 534 600 391 409 . Maximum Alert Level 3 | . 1 2 1 . . 1 1 3 2 . 2 1 2 2 1 1 . 2 . . . . 1 . . . . . 2 2 3 3 2 3 . Low Security (%) 43 | 100 91 43 4 . 100 75 64 9 . 100 83 63 11 80 92 40 100 71 . . . . 69 . . . . 100 59 4 . . 6 5 . Level 1 19 | . 8 53 95 . . 24 35 37 43 . 3 36 65 12 7 59 . 11 . . . . 30 . . . . . 27 51 14 9 28 6 . Level 2 21 | . . 2 . . . . . 41 56 . 12 . 22 6 . . . 17 . . . . . . . . . . 12 43 83 59 64 31 . Level 3 16 | . . . . . . . . 12 . . . . . . . . . . . . . . . . . . . . . . 1 30 . 57 . Level 4 . | . . . . . . . . . . . . . . . . . . . . . . . . . . . . . . . . . . . . Level 5 . | . . . . . . . . . . . . . . . . . . . . . . . . . . . . . . . . . . . . High Security . | . . . . . . . . . . . . . . . . . . . . . . . . . . . . . . . . . . . . Max Security . | . . . . . . . . . . . . . . . . . . . . . . . . . . . . . . . . . . . . Squads Dispatched 95 | . 5 3 . . . 2 4 13 10 . 9 1 . . 1 . . 13 . . . . 10 . 1 . . 3 7 2 5 4 . 2 . Investigation 17 | . 3 1 . . . . . 3 1 . 2 . . . . . . 2 . . . . 1 . 1 . . 1 . 2 . . . . . Extermination 23 | . . . . . . . 1 2 1 . 1 . . . . . . 3 . . . . 4 . . . . . 5 . 3 2 . 1 . Reinforcement 33 | . 2 2 . . . 2 . 4 5 . 3 1 . . 1 . . 4 . . . . 2 . . . . 2 1 . 1 2 . 1 . Assault 4 | . . . . . . . . 1 . . 1 . . . . . . 1 . . . . . . . . . . . . 1 . . . . Garrison 18 | . . . . . . . 3 3 3 . 2 . . . . . . 3 . . . . 3 . . . . . 1 . . . . . . Intercept . | . . . . . . . . . . . . . . . . . . . . . . . . . . . . . . . . . . . . Construction Impeded 8 | . . . . . . . . . 1 . 1 1 . . . . . 2 . . . . 1 . . . . . . . . 2 . . . Haulers Reinforced 5 | . . . . . . . . 1 2 . . . . . . . . . . . . . 1 . . . . 1 . . . . . . . Stealth | -11 -10 -9 -9 -9 -8 -8 -7 -7 -6 -6 -6 -6 -6 -6 -6 -5 -5 -5 -5 -5 -5 -4 -4 -4 -4 -4 -3 -3 -3 -2 -2 -2 -1 -1 -1 --------- Run | Scr Mat Mat Min Exi Min Mat Fac Sto Fac Was Fac Ext Cet Arc Hub Fac Was Fac Upp Upp War Pro Fac Upp Upp Zhi Pro Res Qua Res Tes Sec Acc Com Ac0 Distress Signals 68 | . 1 1 . . . 4 3 5 . . 1 2 2 . . . . 6 . . 1 . 3 . . . . 5 1 3 2 2 . 26 . Communications Jammed 28 | . . . . . . . . . . . . . . . . . . . . . . . 28 . . . . . . . . . . . . Distress Signals 28 | . . . . . . . . . . . . . . . . . . . . . . . 28 . . . . . . . . . . . . Times Spotted 735 | . 32 24 7 . 3 23 17 63 33 4 33 11 15 15 5 5 4 46 9 . 40 12 28 14 4 . 10 11 48 47 25 21 5 63 58 Peak Tracking Total 11 | . 4 4 4 . 3 6 4 11 6 3 6 3 5 1 9 4 4 7 5 . 11 3 5 3 4 . 4 5 5 9 7 8 3 7 6 Tactical Retreats 44 | . 6 . . . . . 1 4 . . 3 . . . . . 1 1 . . 3 1 2 . 1 . . 1 4 6 1 . 1 7 1 Traps | -11 -10 -9 -9 -9 -8 -8 -7 -7 -6 -6 -6 -6 -6 -6 -6 -5 -5 -5 -5 -5 -5 -4 -4 -4 -4 -4 -3 -3 -3 -2 -2 -2 -1 -1 -1 ------- Run | Scr Mat Mat Min Exi Min Mat Fac Sto Fac Was Fac Ext Cet Arc Hub Fac Was Fac Upp Upp War Pro Fac Upp Upp Zhi Pro Res Qua Res Tes Sec Acc Com Ac0 Traps Triggered 30 | . 1 . . . . 1 . 2 1 . 1 . . . . 1 . 2 . . . 5 2 . . . 3 3 2 . . . . 6 . Indirectly . | . . . . . . . . . . . . . . . . . . . . . . . . . . . . . . . . . . . . Trap Hack Attempts . | . . . . . . . . . . . . . . . . . . . . . . . . . . . . . . . . . . . . Triggered . | . . . . . . . . . . . . . . . . . . . . . . . . . . . . . . . . . . . . Disarmed . | . . . . . . . . . . . . . . . . . . . . . . . . . . . . . . . . . . . . Reprogrammed . | . . . . . . . . . . . . . . . . . . . . . . . . . . . . . . . . . . . . Reused 3 | . . . . . . . . . . . . . . . . . . . . . 1 1 . . . . 1 . . . . . . . . Traps Extracted . | . . . . . . . . . . . . . . . . . . . . . . . . . . . . . . . . . . . . Installed 16 | . . . 4 . . . . . . . . . . . . . . . . . 1 6 . . . . 4 1 . . . . . . . Triggered 12 | . 1 . . . . . . . . . . . . . . . . . . . 7 1 . 1 . . . . . . . . . 2 . Machines | -11 -10 -9 -9 -9 -8 -8 -7 -7 -6 -6 -6 -6 -6 -6 -6 -5 -5 -5 -5 -5 -5 -4 -4 -4 -4 -4 -3 -3 -3 -2 -2 -2 -1 -1 -1 ---------- Run | Scr Mat Mat Min Exi Min Mat Fac Sto Fac Was Fac Ext Cet Arc Hub Fac Was Fac Upp Upp War Pro Fac Upp Upp Zhi Pro Res Qua Res Tes Sec Acc Com Ac0 Machines Disabled 89 | . . 2 . . . 2 1 1 4 . 5 1 . 5 14 2 . 3 . . . . 6 . 2 . . 1 14 2 3 11 . 6 4 Max in Single Turn 14 | . . 1 . . . 1 1 1 3 . 2 . . 1 14 1 . 1 . . . . 2 . 1 . . 1 2 1 1 1 . 1 1 Garrison Access 6 | . . . . . . . . . . . 1 . . . . . . . . . . . . . . . . 3 . 1 . . 1 . . Network Hub 1 | . . . . . . . . . . . . . . . 1 . . . . . . . . . . . . . . . . . . . . Machines Sabotaged . | . . . . . . . . . . . . . . . . . . . . . . . . . . . . . . . . . . . . Garrisons Compromised . | . . . . . . . . . . . . . . . . . . . . . . . . . . . . . . . . . . . . Overloaded Fab Kills . | . . . . . . . . . . . . . . . . . . . . . . . . . . . . . . . . . . . . Fab Network Shutdowns . | . . . . . . . . . . . . . . . . . . . . . . . . . . . . . . . . . . . . Hacking | -11 -10 -9 -9 -9 -8 -8 -7 -7 -6 -6 -6 -6 -6 -6 -6 -5 -5 -5 -5 -5 -5 -4 -4 -4 -4 -4 -3 -3 -3 -2 -2 -2 -1 -1 -1 --------- Run | Scr Mat Mat Min Exi Min Mat Fac Sto Fac Was Fac Ext Cet Arc Hub Fac Was Fac Upp Upp War Pro Fac Upp Upp Zhi Pro Res Qua Res Tes Sec Acc Com Ac0 Machines Accessed 120 | . 9 4 . 2 . 4 2 11 6 . 9 6 . . 1 1 . 9 . . . . 11 . 2 4 . 6 13 3 7 1 5 4 . Terminals 92 | . 6 3 . . . 4 2 9 4 . 9 6 . . 1 1 . 7 . . . . 9 . 1 . . 3 12 1 5 1 4 4 . Fabricators 3 | . . . . . . . . . 1 . . . . . . . . . . . . . 1 . . . . 1 . . . . . . . Repair Stations 1 | . 1 . . . . . . . . . . . . . . . . . . . . . . . . . . . . . . . . . . Recycling Units 6 | . 2 1 . . . . . 2 . . . . . . . . . 1 . . . . . . . . . . . . . . . . . Scanalyzers 7 | . . . . . . . . . 1 . . . . . . . . . . . . . 1 . . . . 1 1 1 2 . . . . Garrison Access 4 | . . . . . . . . . . . . . . . . . . 1 . . . . . . . . . 1 . 1 . . 1 . . Total Hacks 444 | . 24 13 . 2 . 10 6 34 12 . 36 27 . . 2 5 . 26 . . . . 57 . 7 17 . 32 58 19 16 2 28 11 . Successful 220 | . 14 7 . 2 . 5 3 16 4 . 16 17 . . . 2 . 14 . . . . 22 . 3 17 . 16 31 9 5 1 13 3 . Failed 218 | . 10 5 . . . 5 3 18 8 . 20 9 . . 2 2 . 11 . . . . 35 . 4 . . 16 26 10 11 1 14 8 . Catastrophic 42 | . 1 1 . . . 1 . 6 1 . 5 2 . . 1 1 . 4 . . . . 3 . 1 . . . 3 3 2 . 4 3 . Database Lockouts 6 | . . 1 . . . . . . . . . 1 . . . 1 . 1 . . . . . . . . . . 1 . . . 1 . . Manual 220 | . 13 9 . 1 . 5 4 24 5 . 15 23 . . 2 5 . 12 . . . . 27 . 6 . . 11 16 8 3 . 20 11 . Terminals 367 | . 19 12 . . . 10 6 32 8 . 36 27 . . 2 5 . 22 . . . . 51 . 6 . . 18 51 8 14 2 27 11 . Fabricators 11 | . . . . . . . . . 2 . . . . . . . . . . . . . 4 . . . . 5 . . . . . . . Repair Stations 3 | . 3 . . . . . . . . . . . . . . . . . . . . . . . . . . . . . . . . . . Recycling Units 6 | . 2 1 . . . . . 2 . . . . . . . . . 1 . . . . . . . . . . . . . . . . . Scanalyzers 27 | . . . . . . . . . 2 . . . . . . . . . . . . . 2 . . . . 7 7 7 2 . . . . Garrison Access 10 | . . . . . . . . . . . . . . . . . . 3 . . . . . . . . . 2 . 4 . . 1 . . Terminal Hacks 153 | . 7 5 . 2 . 4 1 9 . . 13 13 . . . 2 . 11 . . . . 16 . 3 17 . 7 21 3 4 1 12 2 . Record 6 | . . . . 1 . . . . . . . . . . . . . . . . . . . . . 5 . . . . . . . . . Part Schematic 6 | . . . . . . . . 1 . . . . . . . . . . . . . . 1 . . 4 . . . . . . . . . Robot Schematic 2 | . . 1 . . . . . . . . . . . . . . . . . . . . 1 . . . . . . . . . . . . Robot Analysis 6 | . 1 . . . . . . . . . 1 . . . . . . . . . . . . . . 4 . . . . . . . . . Prototype ID Bank 45 | . 3 2 . . . 3 . . . . 3 6 . . . 2 . 1 . . . . 2 . 2 4 . 2 6 1 2 . 6 . . Open Door 7 | . . . . . . . . 2 . . 1 . . . . . . . . . . . . . 1 . . . . . . . 3 . . Level Access Points 3 | . . . . . . . . . . . 1 . . . . . . . . . . . . . . . . . 1 1 . . . . . Branch Access Points 6 | . . 1 . . . . 1 . . . 1 . . . . . . 1 . . . . 1 . . . . 1 . . . . . . . Machine Index 2 | . . . . . . . . . . . . . . . . . . 1 . . . . . . . . . . . . 1 . . . . Terminal Index 7 | . . . . . . . . . . . 1 2 . . . . . 1 . . . . 1 . . . . 1 1 . . . . . . Fabricator Index 1 | . . . . . . . . . . . . . . . . . . . . . . . 1 . . . . . . . . . . . . Alert Level 12 | . . . . . . . . 2 . . 1 2 . . . . . . . . . . 2 . . . . . 2 . 1 . 1 1 . Unreport Threat 15 | . . . . . . . . 1 . . 2 1 . . . . . 4 . . . . 2 . . . . . 2 . . . 2 1 . Locate Traps 7 | . . . . . . . . . . . 1 1 . . . . . 2 . . . . 2 . . . . . 1 . . . . . . Patrol Status 3 | . 1 . . . . . . 1 . . . . . . . . . . . . . . . . . . . . 1 . . . . . . Recall Investigation 1 | . 1 . . . . . . . . . . . . . . . . . . . . . . . . . . . . . . . . . . Recall Extermination 1 | . . . . . . . . . . . . . . . . . . . . . . . 1 . . . . . . . . . . . . Recall Reinforcements 4 | . 1 . . . . . . 1 . . . 1 . . . . . . . . . . . . . . . . . . . 1 . . . Recall Assault 1 | . . . . . . . . . . . . . . . . . . 1 . . . . . . . . . . . . . . . . . Hauler Manifests 2 | . . . . . . . . . . . . . . . . . . . . . . . . . . . . 1 . 1 . . . . . Registered Components 2 | . . . . . . . . . . . . . . . . . . . . . . . 1 . . . . 1 . . . . . . . Zone Layout 13 | . . 1 . . . 1 . 1 . . 1 . . . . . . . . . . . 1 . . . . 1 7 . . . . . . EX-Prototype ID Bank 1 | . . . . 1 . . . . . . . . . . . . . . . . . . . . . . . . . . . . . . . Fabricator Hacks 4 | . . . . . . . . . 1 . . . . . . . . . . . . . 1 . . . . 2 . . . . . . . Load Schematic 3 | . . . . . . . . . 1 . . . . . . . . . . . . . 1 . . . . 1 . . . . . . . Build 1 | . . . . . . . . . . . . . . . . . . . . . . . . . . . . 1 . . . . . . . Repair Station Hacks 2 | . 2 . . . . . . . . . . . . . . . . . . . . . . . . . . . . . . . . . . Scan Component 1 | . 1 . . . . . . . . . . . . . . . . . . . . . . . . . . . . . . . . . . Repair 1 | . 1 . . . . . . . . . . . . . . . . . . . . . . . . . . . . . . . . . . Recycling Unit Hacks 1 | . . . . . . . . . . . . . . . . . . 1 . . . . . . . . . . . . . . . . . Retrieve Components 1 | . . . . . . . . . . . . . . . . . . 1 . . . . . . . . . . . . . . . . . Scanalyzer 17 | . . . . . . . . . 2 . . . . . . . . . . . . . 1 . . . . 5 5 4 . . . . . Insert Component 17 | . . . . . . . . . 2 . . . . . . . . . . . . . 1 . . . . 5 5 4 . . . . . Garrison Access Hacks 1 | . . . . . . . . . . . . . . . . . . . . . . . . . . . . . . . . . 1 . . Seal Access 1 | . . . . . . . . . . . . . . . . . . . . . . . . . . . . . . . . . 1 . . Unauthorized Hacks 42 | . 5 2 . . . 1 2 7 1 . 3 4 . . . . . 2 . . . . 4 . . . . 2 5 2 1 . . 1 . Terminals 35 | . 3 1 . . . 1 2 5 1 . 3 4 . . . . . 2 . . . . 4 . . . . 2 5 . 1 . . 1 . Track 13 | . 3 1 . . . . . 3 . . . 1 . . . . . 1 . . . . . . . . . 1 2 . 1 . . . . Assimilate 2 | . . . . . . . . . . . . . . . . . . . . . . . . . . . . . 2 . . . . . . Botnet 14 | . . . . . . . 1 2 1 . 2 2 . . . . . 1 . . . . 2 . . . . 1 1 . . . . 1 . Operators 6 | . . . . . . 1 1 . . . 1 1 . . . . . . . . . . 2 . . . . . . . . . . . . Fabricators . | . . . . . . . . . . . . . . . . . . . . . . . . . . . . . . . . . . . . Repair Stations . | . . . . . . . . . . . . . . . . . . . . . . . . . . . . . . . . . . . . Recycling Units 5 | . 2 1 . . . . . 2 . . . . . . . . . . . . . . . . . . . . . . . . . . . Tunnel 5 | . 2 1 . . . . . 2 . . . . . . . . . . . . . . . . . . . . . . . . . . . Scanalyzers 1 | . . . . . . . . . . . . . . . . . . . . . . . . . . . . . . 1 . . . . . Extract 1 | . . . . . . . . . . . . . . . . . . . . . . . . . . . . . . 1 . . . . . Garrison Access 1 | . . . . . . . . . . . . . . . . . . . . . . . . . . . . . . 1 . . . . . Jam 1 | . . . . . . . . . . . . . . . . . . . . . . . . . . . . . . 1 . . . . . Data Cores Recovered 1 | . . . . . . . . . . . . . . . . . . . . . . . 1 . . . . . . . . . . . . Used 1 | . . . . . . . . . . . . . . . . . . . . . . . 1 . . . . . . . . . . . . Hacking Detections 100 | . 6 3 . . . 4 2 9 6 . 9 6 . . 1 1 . 9 . . . . 11 . 1 . . 6 10 2 7 1 3 3 . Full Trace Events 7 | . 1 . . . . . . . 1 . 2 . . . . . . . . . . . 1 . 1 . . 1 . . . . . . . Feedback Events . | . . . . . . . . . . . . . . . . . . . . . . . . . . . . . . . . . . . . Feedback Blocked . | . . . . . . . . . . . . . . . . . . . . . . . . . . . . . . . . . . . . Robot Schematics Acquired 2 | . . 1 . . . . . . . . . . . . . . . . . . . . 1 . . . . . . . . . . . . Robots Built . | . . . . . . . . . . . . . . . . . . . . . . . . . . . . . . . . . . . . Matter . | . . . . . . . . . . . . . . . . . . . . . . . . . . . . . . . . . . . . Time . | . . . . . . . . . . . . . . . . . . . . . . . . . . . . . . . . . . . . Total Robot Build Rating . | . . . . . . . . . . . . . . . . . . . . . . . . . . . . . . . . . . . . Part Schematics Acquired 8 | . . . . . . . . 1 . . . . . . . . . . . . . . 1 . . 4 . . . 2 . . . . . Parts Built . | . . . . . . . . . . . . . . . . . . . . . . . . . . . . . . . . . . . . Matter . | . . . . . . . . . . . . . . . . . . . . . . . . . . . . . . . . . . . . Time . | . . . . . . . . . . . . . . . . . . . . . . . . . . . . . . . . . . . . Total Part Build Rating . | . . . . . . . . . . . . . . . . . . . . . . . . . . . . . . . . . . . . Parts Repaired 1 | . 1 . . . . . . . . . . . . . . . . . . . . . . . . . . . . . . . . . . Time 13 | . 13 . . . . . . . . . . . . . . . . . . . . . . . . . . . . . . . . . . Parts Recycled . | . . . . . . . . . . . . . . . . . . . . . . . . . . . . . . . . . . . . Recycled Matter . | . . . . . . . . . . . . . . . . . . . . . . . . . . . . . . . . . . . . Retrieved Matter . | . . . . . . . . . . . . . . . . . . . . . . . . . . . . . . . . . . . . Retrieved Components 2 | . . . . . . . . . . . . . . . . . . 2 . . . . . . . . . . . . . . . . . Parts Scanalyzed 1 | . . . . . . . . . . . . . . . . . . . . . . . . . . . . . 1 . . . . . . Part Schematics Acquired . | . . . . . . . . . . . . . . . . . . . . . . . . . . . . . . . . . . . . Parts Damaged . | . . . . . . . . . . . . . . . . . . . . . . . . . . . . . . . . . . . . Bothacking | -11 -10 -9 -9 -9 -8 -8 -7 -7 -6 -6 -6 -6 -6 -6 -6 -5 -5 -5 -5 -5 -5 -4 -4 -4 -4 -4 -3 -3 -3 -2 -2 -2 -1 -1 -1 ------------ Run | Scr Mat Mat Min Exi Min Mat Fac Sto Fac Was Fac Ext Cet Arc Hub Fac Was Fac Upp Upp War Pro Fac Upp Upp Zhi Pro Res Qua Res Tes Sec Acc Com Ac0 Used RIF Installer . | . . . . . . . . . . . . . . . . . . . . . . . . . . . . . . . . . . . . Robots Hacked 2 | . . . . . . . . . . . . . . . . 1 . . . . . . 1 . . . . . . . . . . . . Non-combat 2 | . . . . . . . . . . . . . . . . 1 . . . . . . 1 . . . . . . . . . . . . Combat . | . . . . . . . . . . . . . . . . . . . . . . . . . . . . . . . . . . . . Robot Hacks Applied 2 | . . . . . . . . . . . . . . . . 1 . . . . . . 1 . . . . . . . . . . . . find_chute 2 | . . . . . . . . . . . . . . . . 1 . . . . . . 1 . . . . . . . . . . . . Relay Couplers Released 6 | . . . . . . . . . . . 2 . . . . . . . . . . . . . . . . 4 . . . . . . . Machine Destruction 2 | . . . . . . . . . . . 2 . . . . . . . . . . . . . . . . . . . . . . . . Programmers 4 | . . . . . . . . . . . . . . . . . . . . . . . . . . . . 4 . . . . . . . Robots Rewired 6 | . . . . . . . . . . . . 6 . . . . . . . . . . . . . . . . . . . . . . . Allies Hacked 1 | . . . . . . . . . . . . . . . . . . . . . . . . . . . . . 1 . . . . . . Hacks Repelled . | . . . . . . . . . . . . . . . . . . . . . . . . . . . . . . . . . . . . Allies | -11 -10 -9 -9 -9 -8 -8 -7 -7 -6 -6 -6 -6 -6 -6 -6 -5 -5 -5 -5 -5 -5 -4 -4 -4 -4 -4 -3 -3 -3 -2 -2 -2 -1 -1 -1 -------- Run | Scr Mat Mat Min Exi Min Mat Fac Sto Fac Was Fac Ext Cet Arc Hub Fac Was Fac Upp Upp War Pro Fac Upp Upp Zhi Pro Res Qua Res Tes Sec Acc Com Ac0 Total Allies 22 | . . . . . . . . . . 1 . 11 . . . . . . . . . . . . . . . . 2 . . . . . 8 Largest Group 8 | . . . . . . . . . . 1 . 8 4 . . . . . . . . . . . . . . . 2 . . . . . 8 Highest-Rated Group 374 | . . . . . . . . . . 31 . 374 262 . . . . . . . . . . . . . . . 52 . . . . . 113 Highest-Rated Ally 156 | . . . . . . . . . . 31 . 156 156 . . . . . . . . . . . . . . . 26 . . . . . 15 Total Orders 54 | . . . . . . . . . 5 3 . . . . . . . . . . . . 2 17 13 . 2 . 1 4 . . . . 7 STAY 9 | . . . . . . . . . . . . . . . . . . . . . . . 1 6 . . . . 1 . . . . . 1 FOLLOW 2 | . . . . . . . . . . . . . . . . . . . . . . . 1 1 . . . . . . . . . . . EXPLORE 29 | . . . . . . . . . 4 2 . . . . . . . . . . . . . 8 7 . 1 . . 3 . . . . 4 RETURN 14 | . . . . . . . . . 1 1 . . . . . . . . . . . . . 2 6 . 1 . . 1 . . . . 2 Ally Attacks 151 | . . . . . . . . . . 25 . 92 27 . . . . . . . . . . . . . . . . . . . . . 7 Total Damage 3136 | . . . . . . . . . . 508 . 2046 458 . . . . . . . . . . . . . . . . . . . . . 124 Kills 22 | . . . . . . . . . . 1 . 16 4 . . . . . . . . . . . . . . . . . . . . . 1 Allies Corrupted 2 | . . . . . . . . . . 1 . 1 . . . . . . . . . . . . . . . . . . . . . . . Allies Melted . | . . . . . . . . . . . . . . . . . . . . . . . . . . . . . . . . . . . . Intel | -11 -10 -9 -9 -9 -8 -8 -7 -7 -6 -6 -6 -6 -6 -6 -6 -5 -5 -5 -5 -5 -5 -4 -4 -4 -4 -4 -3 -3 -3 -2 -2 -2 -1 -1 -1 ------- Run | Scr Mat Mat Min Exi Min Mat Fac Sto Fac Was Fac Ext Cet Arc Hub Fac Was Fac Upp Upp War Pro Fac Upp Upp Zhi Pro Res Qua Res Tes Sec Acc Com Ac0 Robot Analysis Total 6 | . 1 . . . . . . . . . 1 . . . . . . . . . . . . . . 4 . . . . . . . . . Derelict Logs Recovered 8 | . . . 3 . . . . . . . . . . . . . . . 1 . . 1 . . 3 . . . . . . . . . . Drone Launches 34 | . . . . . . . . . 8 3 . . . . . . . . . . . . 2 4 8 . 2 . . 2 . . . . 5 Drone Recoveries 20 | . . . . . . . . . 4 1 . . . . . . . . . . . . . 4 7 . 1 . . . . . . . 3 Exploration | -11 -10 -9 -9 -9 -8 -8 -7 -7 -6 -6 -6 -6 -6 -6 -6 -5 -5 -5 -5 -5 -5 -4 -4 -4 -4 -4 -3 -3 -3 -2 -2 -2 -1 -1 -1 ------------- Run | Scr Mat Mat Min Exi Min Mat Fac Sto Fac Was Fac Ext Cet Arc Hub Fac Was Fac Upp Upp War Pro Fac Upp Upp Zhi Pro Res Qua Res Tes Sec Acc Com Ac0 Turns Passed 52405 | 300 1679 921 232 950 482 741 695 1434 1246 225 1286 1166 351 4105 179 227 401 2201 7305 734 1027 462 1944 598 922 248 605 1578 2697 1982 1136 806 555 10048 937 Spaces Moved 18046 | 93 719 406 123 480 234 270 285 505 485 95 488 517 132 428 83 90 142 930 527 343 482 216 871 213 378 167 329 811 1031 587 407 265 250 4428 236 Core 383 | 4 . . . . . . . . . . . . . 144 . . . . 227 . . . . . . . . . . . . . . . 8 Treads 15890 | 89 719 406 123 480 234 270 285 505 283 50 488 517 132 284 83 90 142 930 300 343 482 216 865 1 . . . 377 1031 587 407 265 250 4428 228 Legs . | . . . . . . . . . . . . . . . . . . . . . . . . . . . . . . . . . . . . Wheels 1773 | . . . . . . . . . 202 45 . . . . . . . . . . . . 6 212 378 167 329 434 . . . . . . . Hover . | . . . . . . . . . . . . . . . . . . . . . . . . . . . . . . . . . . . . Flight . | . . . . . . . . . . . . . . . . . . . . . . . . . . . . . . . . . . . . Fastest Speed 50 | 50 160 160 160 160 200 197 178 178 123 123 180 180 160 160 160 180 180 160 160 160 160 160 150 130 130 130 140 140 180 200 185 185 185 165 50 Average Speed 221 | 155 160 160 160 193 200 202 178 201 189 153 181 185 164 923 178 180 180 179 1061 162 165 179 175 141 138 135 148 170 189 209 197 185 185 178 171 Slowest Speed 2400 | 160 180 160 160 200 200 205 178 225 203 180 220 200 180 2400 180 180 180 180 2250 180 180 180 240 240 140 150 150 240 210 210 200 185 185 205 177 Overloaded Moves . | . . . . . . . . . . . . . . . . . . . . . . . . . . . . . . . . . . . . Propulsion Burnouts . | . . . . . . . . . . . . . . . . . . . . . . . . . . . . . . . . . . . . Robots Hopped . | . . . . . . . . . . . . . . . . . . . . . . . . . . . . . . . . . . . . Cave-ins Triggered 2 | . . . . . . . 1 . . . . . . . . . . . . 1 . . . . . . . . . . . . . . . Teleports 5 | . . . . . . . . . . . . . . . . . . . . . . . . . . . . . 1 1 . 1 . 1 1 Exploration Rate (%) 49 | 4 96 42 32 70 48 34 7 84 18 85 19 68 61 84 13 4 76 23 51 62 74 52 32 88 90 60 62 27 87 30 46 17 10 82 30 Regions Visited 35 Branch Regions 21 Pre-discovered Areas 12 | . 2 1 2 1 . . . 2 . . . . . . . . . . . . . . . . 1 3 . . . . . . . . . Known Exits Taken 23 | . . 1 . . . . 1 . . . 1 1 1 1 1 . . 1 1 1 1 1 1 1 1 1 1 1 1 1 1 1 1 . . Unknown Exits Taken 8 | 1 1 . 1 1 1 1 . 1 . . . . . . . . . . . . . . . . . . . . . . . . . 1 . Scrap Searched 10 | . . . . . 2 . . . . . . . . . . . . . 1 1 . . . 2 2 . 2 . . . . . . . . Spaces Dug 196 | . 7 3 . . . 2 8 1 . . 3 1 . . 3 . . 17 3 4 7 2 15 10 11 . 10 18 11 8 5 7 9 27 4 Terrain Destroyed 1521 | . 9 24 . . . 2 8 1 61 . 227 1 186 9 150 1 42 56 14 32 20 101 37 39 22 . 20 21 24 53 24 42 21 115 159 Melee 79 | . . . . . . 2 . 1 . . 3 1 . . 1 . . 15 2 4 7 2 7 4 7 . 2 18 3 . . . . . . Projectile 634 | . 9 5 . . . . . . . . . . . 9 2 1 5 41 12 . 13 1 30 35 15 . 18 3 21 53 24 42 21 115 159 AOE 808 | . . 19 . . . . 8 . 61 . 224 . 186 . 147 . 37 . . 28 . 98 . . . . . . . . . . . . . Terrain Rammed . | . . . . . . . . . . . . . . . . . . . . . . . . . . . . . . . . . . . . Walls Destroyed . | . . . . . . . . . . . . . . . . . . . . . . . . . . . . . . . . . . . . Machines Disabled . | . . . . . . . . . . . . . . . . . . . . . . . . . . . . . . . . . . . . Actions | -11 -10 -9 -9 -9 -8 -8 -7 -7 -6 -6 -6 -6 -6 -6 -6 -5 -5 -5 -5 -5 -5 -4 -4 -4 -4 -4 -3 -3 -3 -2 -2 -2 -1 -1 -1 --------- Run | Scr Mat Mat Min Exi Min Mat Fac Sto Fac Was Fac Ext Cet Arc Hub Fac Was Fac Upp Upp War Pro Fac Upp Upp Zhi Pro Res Qua Res Tes Sec Acc Com Ac0 Total 27597 | 206 1062 563 138 504 249 396 394 736 706 134 767 691 210 531 97 136 234 1220 2209 504 700 264 1128 440 743 186 402 952 1582 1226 657 486 317 6301 526 Wait 5721 | 63 175 39 1 . 9 66 49 80 115 1 173 54 5 39 2 22 47 101 1626 112 147 7 85 170 330 . 22 25 264 490 152 102 24 1065 59 Move 18013 | 93 718 405 122 479 233 269 284 504 485 94 487 516 131 427 82 90 141 929 526 342 481 215 870 212 377 166 328 810 1030 586 406 264 249 4427 235 Hop . | . . . . . . . . . . . . . . . . . . . . . . . . . . . . . . . . . . . . Pick Up 413 | 4 18 15 1 20 3 7 4 10 15 3 5 5 8 22 . 2 1 9 2 10 18 1 11 . 4 5 9 21 25 10 6 1 2 124 12 Fast Attach 224 | 7 3 4 . 1 . 4 3 14 11 4 1 4 6 4 . . . 3 . . 4 . 21 3 2 3 2 8 8 4 4 9 3 74 10 Attach 278 | . 6 6 . . . 2 6 5 13 . 13 10 6 1 . 4 8 14 13 3 8 2 12 6 3 5 4 10 18 11 4 7 5 56 17 Detach 176 | . 2 . . . . . 1 5 7 . 4 9 2 1 . . 8 6 10 4 7 2 10 4 3 2 2 7 12 3 2 7 3 52 1 Swap 441 | 1 19 20 . . . 3 4 7 6 4 22 7 7 4 5 9 7 40 9 3 4 8 21 13 3 1 6 7 51 46 20 21 2 31 30 Drop 460 | . 13 23 1 4 3 12 4 25 8 11 3 5 11 10 . 1 1 3 6 7 18 6 18 3 3 2 5 18 28 10 11 4 4 171 8 Fire 1423 | 38 94 47 9 . . 29 32 76 45 17 51 13 24 20 5 8 21 69 14 1 . 9 54 25 8 . 15 9 107 65 44 68 24 233 149 Melee 154 | . . . . . . 2 1 3 . . 3 4 10 . 1 . . 25 2 5 12 2 17 4 10 2 5 28 10 . 8 . . . . Ram 1 | . . . . . . . . . . . . 1 . . . . . . . . . . . . . . . . . . . . . . . Kick . | . . . . . . . . . . . . . . . . . . . . . . . . . . . . . . . . . . . . Crush 181 | . 14 4 . . 1 2 6 7 1 . 5 1 . 3 2 . . 21 1 17 . 6 8 . . . . 4 25 1 . 3 1 43 5 Escape Stasis 18 | . . . . . . . . . . . . . . . . . . . . . . . . . . . . 4 4 . . . . 10 . Rewire 77 | . . . . . . . . . . . . 62 . . . . . . . . . . . . . . . . . . . . . 15 . Trap 16 | . . . 4 . . . . . . . . . . . . . . . . . 1 6 . . . . 4 1 . . . . . . . Miscellaneous 1 | . . . . . . . . . . . . . . . . . . . . . . . 1 . . . . . . . . . . . . Route ------- -11/Scrapyard -10/Materials (discovered 5 exits: *Mat x3 / [*Min x2]) -9/Materials (discovered 3 exits: *Mat x2 / *Min) -9/Mines (discovered 2 exits: *Mat / *Exi) -9/Exiles -8/Mines -8/Materials -7/Factory (discovered 4 exits: *Sto x2 / Low x2) -7/Storage -6/Factory (discovered 2 exits: *Fac / *Low) -6/Waste -6/Factory (discovered 8 exits: Fac x4 / Low x2 / *Ext x2) -6/Extension (discovered 2 exits: *Fac / *Cet) -6/Cetus -6/Archives (discovered 3 exits: *Fac / *Hub x2) -6/Hub_04(d) -5/Factory -5/Waste -5/Factory (discovered 2 exits: *Upp x2) -5/Upper Caves -5/Upper Caves (discovered 2 exits: *Fac / *War) -5/Warlord -4/Proximity Caves -4/Factory (discovered 2 exits: *Upp x2) -4/Upper Caves -4/Upper Caves -4/Zhirov -3/Proximity Caves -3/Research (discovered 4 exits: *Res / Arm / *Qua x2) -3/Quarantine -2/Research (discovered 5 exits: Acc x3 / *Tes x2) -2/Testing -2/Section 7 -1/Access -1/Command (discovered 3 exits: [*Sur x2] / [*Ac0]) -1/Access_0 Near Former Tau Ceti IV History --------- Turn | Location | Event 2 | -11/Scrapyard | Discovered new exit (range 16) 301 | -11/Scrapyard | Entered Materials 302 | -10/Materials | Build established: Mutant 384 | -10/Materials | Discovered new exit (range 9) 641 | -10/Materials | Discovered new exit (range 10) 1202 | -10/Materials | Discovered new exit (range 16) 1309 | -10/Materials | Discovered new exit (range 14) 1408 | -10/Materials | Repaired Lgt. Treads 1672 | -10/Materials | Discovered new exit (range 6) 1690 | -10/Materials | Build established: Scavenger-Mutant 1980 | -10/Materials | Entered another Materials area 1980 | -9/Materials | Evolved 2 slots: Weapon x2 2324 | -9/Materials | Discovered new exit (range 5) 2557 | -9/Materials | Identified exit to Mines 2557 | -9/Materials | Central database locked down 2625 | -9/Materials | Build established: Tank 2707 | -9/Materials | Discovered new exit (range 10) 2901 | -9/Materials | Entered Mines 2919 | -9/Mines | Discovered new exit (range 14) 2996 | -9/Mines | Found a hidden stash of uninstalled traps 3054 | -9/Mines | Learned location of Zion (-6) 3114 | -9/Mines | Learned Materials terminal intel 3126 | -9/Mines | Deemed a non-threat by the Exiles lab entrance 3126 | -9/Mines | Discovered new exit (range 5) 3133 | -9/Mines | Entered Exiles 3172 | -9/Exiles | Met 8R-AWN 3201 | -9/Exiles | Met EX-HEX 3549 | -9/Exiles | Build established: Hauler-Gunner 3554 | -9/Exiles | Met EX-DEC 3759 | -9/Exiles | Met EX-BIN 3795 | -9/Exiles | Aligned with FarCom system 3797 | -9/Exiles | Given EX-Vault access code 3847 | -9/Exiles | Opened EX-Vault 3861 | -9/Exiles | Found Superbattery 3865 | -9/Exiles | Found AWS/Gauss 3872 | -9/Exiles | Found Skeleton Box 3915 | -9/Exiles | Warned to stay clear of 0b10 Research branches 4053 | -9/Exiles | Discovered new exit (range 14) 4083 | -9/Exiles | Stole three prototypes: Superbattery, Skeleton Box, AWS/Gauss 4083 | -9/Exiles | Entered Mines 4378 | -8/Mines | Build established: Hauler-Skirmisher 4547 | -8/Mines | Discovered new exit (range 11) 4565 | -8/Mines | Entered Materials 4565 | -8/Materials | Evolved 2 slots: Utility x2 4566 | -8/Materials | Loaded intel: 12 terminal locations 5247 | -8/Materials | Discovered new exit (range 11) 5306 | -8/Materials | Entered Factory 5306 | -7/Factory | Evolved 2 slots: Propulsion x1, Utility x1 5308 | -7/Factory | FarCom data flow suspended 5612 | -7/Factory | Build established: Hauler-Tank 5640 | -7/Factory | Garrison activated, responded to threat 5763 | -7/Factory | Identified exit to Storage 5763 | -7/Factory | Identified exit to Lower Caves 5936 | -7/Factory | Crushed by falling debris 6001 | -7/Factory | Entered Storage 6085 | -7/Storage | Remotely autohacked Sealed Heavy Doors 6241 | -7/Storage | Found Prototype Launcher 6241 | -7/Storage | Identified Rocket Array 6609 | -7/Storage | Build established: Scavenger-Tank 6943 | -7/Storage | Garrison activated, responded to threat 7201 | -7/Storage | First assault squad dispatched 7419 | -7/Storage | Discovered new exit (range 9) 7435 | -7/Storage | Entered Factory 7435 | -6/Factory | Evolved 2 slots: Propulsion x1, Utility x1 7608 | -6/Factory | Found Prototype Processor 7615 | -6/Factory | Identified Exp. Signal Interpreter 7898 | -6/Factory | Discovered new exit (range 4) 7913 | -6/Factory | Identified exit to Lower Caves 8070 | -6/Factory | Garrison activated, responded to threat 8210 | -6/Factory | Destroyed 8 combat bots 8267 | -6/Factory | Discovered new exit (range 13) 8409 | -6/Factory | Lost 3 parts (2n1u) 8681 | -6/Factory | Sucked down chute 8681 | -6/Factory | Entered Waste 8682 | -6/Waste | Met a frightened Derelict 8696 | -6/Waste | EMP discharged 8696 | -6/Waste | System corruption reached 10% 8721 | -6/Waste | Destroyed C-40 Crusher 8726 | -6/Waste | Destroyed C-40 Crusher 8733 | -6/Waste | Destroyed C-40 Crusher 8746 | -6/Waste | Spotted C-40 Crusher 8749 | -6/Waste | Found Damper Plating 8760 | -6/Waste | Destroyed C-40 Crusher 8778 | -6/Waste | Spotted C-40 Crusher 8778 | -6/Waste | Spotted C-40 Crusher 8792 | -6/Waste | Destroyed C-40 Crusher 8796 | -6/Waste | EMP discharged 8798 | -6/Waste | Allies destroyed C-40 Crusher 8877 | -6/Waste | Discovered new exit (range 15) 8896 | -6/Waste | EMP discharged 8902 | -6/Waste | Identified exit to Factory 8906 | -6/Waste | Entered Factory 9177 | -6/Factory | Identified exit to Extension 9210 | -6/Factory | Build established: Hauler-Skirmisher 9434 | -6/Factory | Identified exit to Factory 9861 | -6/Factory | Garrison activated, responded to threat 10101 | -6/Factory | Lost 3 parts (3w) 10192 | -6/Factory | Entered Extension 10328 | -6/Extension | Build established: Hauler-Mutant 10543 | -6/Extension | Remotely autohacked Sealed Heavy Doors 10545 | -6/Extension | Rescued a captive Derelict 10574 | -6/Extension | Remotely autohacked Sealed Heavy Doors 10575 | -6/Extension | Rescued a captive Derelict 10582 | -6/Extension | Rescued a captive Derelict 10639 | -6/Extension | Remotely autohacked Sealed Heavy Doors 10639 | -6/Extension | Rescued a captive Derelict 10670 | -6/Extension | Remotely autohacked Sealed Heavy Doors 10671 | -6/Extension | Rescued A7 10674 | -6/Extension | Central database locked down 11092 | -6/Extension | Allies destroyed B-75 Beast 11099 | -6/Extension | Spotted B-75 Beast 11114 | -6/Extension | Allies destroyed B-75 Beast 11324 | -6/Extension | Discovered new exit (range 16) 11326 | -6/Extension | Discovered exit to Factory (range 15) 11349 | -6/Extension | Identified exit to Cetus 11358 | -6/Extension | Entered Cetus 11358 | -6/Cetus | Accompanied by 4 allies (A7) 11363 | -6/Cetus | Acquired a Cetus Manufacturing Module code from A7 11383 | -6/Cetus | Spotted Cetus Guard 11383 | -6/Cetus | Spotted Cetus Guard 11387 | -6/Cetus | Spotted Cetus Guard 11387 | -6/Cetus | Spotted Cetus Guard 11388 | -6/Cetus | Allies destroyed Cetus Guard 11390 | -6/Cetus | Allies destroyed Cetus Guard 11400 | -6/Cetus | Allies destroyed Cetus Guard 11417 | -6/Cetus | Allies destroyed Cetus Guard 11441 | -6/Cetus | Destroyed A7 11444 | -6/Cetus | Extracted ID and sensor layout for unrecognized location from A7's data core 11456 | -6/Cetus | Found Prototype Protection 11456 | -6/Cetus | Identified Med. Regenerative Plating 11594 | -6/Cetus | Discovered new exit (range 16) 11624 | -6/Cetus | Spotted Cetus Guard 11624 | -6/Cetus | Spotted Cetus Guard 11626 | -6/Cetus | Spotted Cetus Guard 11638 | -6/Cetus | Destroyed Cetus Guard 11641 | -6/Cetus | Destroyed Cetus Guard 11641 | -6/Cetus | Destroyed Cetus Guard 11656 | -6/Cetus | Spotted Cetus Guard 11662 | -6/Cetus | Destroyed Cetus Guard 11708 | -6/Cetus | Identified exit to Archives 11709 | -6/Cetus | Entered Archives 11887 | -6/Archives | Discovered new exit (range 16) 11939 | -6/Archives | Discovered exit to Factory (range 15) 12346 | -6/Archives | Build established: Scavenger-Gunner 15628 | -6/Archives | Discovered new exit (range 14) 15812 | -6/Archives | Identified exit to Hub_04(d) 15814 | -6/Archives | Entered Hub_04(d) 15911 | -6/Hub_04(d) | Discovered exit to Factory (range 3) 15979 | -6/Hub_04(d) | Network Hub disabled 15993 | -6/Hub_04(d) | Entered Factory 15993 | -5/Factory | Evolved 2 slots: Utility x2 16208 | -5/Factory | Central database locked down 16220 | -5/Factory | Sucked down chute 16220 | -5/Factory | Entered Waste 16235 | -5/Waste | EMP discharged 16250 | -5/Waste | Destroyed C-40 Crusher 16335 | -5/Waste | EMP discharged 16335 | -5/Waste | System corruption reached 10% 16375 | -5/Waste | Destroyed C-40 Crusher 16375 | -5/Waste | Destroyed C-40 Crusher 16386 | -5/Waste | Spotted C-40 Crusher 16403 | -5/Waste | Destroyed C-40 Crusher 16409 | -5/Waste | Build established: Hauler-Skirmisher 16435 | -5/Waste | EMP discharged 16458 | -5/Waste | Destroyed C-40 Crusher 16474 | -5/Waste | Spotted C-40 Crusher 16479 | -5/Waste | Destroyed C-40 Crusher 16535 | -5/Waste | EMP discharged 16601 | -5/Waste | Discovered new exit (range 11) 16617 | -5/Waste | Identified exit to Factory 16621 | -5/Waste | Entered Factory 16919 | -5/Factory | Garrison activated, responded to threat 17711 | -5/Factory | System corruption reached 30% 17821 | -5/Factory | First assault squad dispatched 17847 | -5/Factory | Identified exit to Upper Caves 18188 | -5/Factory | Build established: Hauler-Gunner 18532 | -5/Factory | Central database locked down 18822 | -5/Factory | Entered Upper Caves 19424 | -5/Upper Caves | Build established: Scavenger-Skirmisher 24901 | -5/Upper Caves | Learned Factory emergency access door positions 25618 | -5/Upper Caves | Attracted the attention of an 0b10 checkpoint 26014 | -5/Upper Caves | Discovered new exit (range 13) 26125 | -5/Upper Caves | Identified exit to Upper Caves 26127 | -5/Upper Caves | Entered another Upper Caves area 26150 | -5/Upper Caves | Build established: Hauler-Skirmisher 26199 | -5/Upper Caves | Discovered new exit (range 11) 26235 | -5/Upper Caves | Encountered a Warlord checkpoint 26677 | -5/Upper Caves | Build established: Hauler-Assassin 26821 | -5/Upper Caves | Crushed by falling debris 26838 | -5/Upper Caves | Discovered new exit (range 11) 26858 | -5/Upper Caves | Identified exit to Warlord 26861 | -5/Upper Caves | Entered Warlord 27237 | -5/Warlord | Found Prototype Energy Gun 27322 | -5/Warlord | Met Warlord 27346 | -5/Warlord | Found Prototype Device 27346 | -5/Warlord | Identified Thermal Barrier 27347 | -5/Warlord | Warlord's base attacked by MAIN.C 27349 | -5/Warlord | Found Prototype Processor 27361 | -5/Warlord | Found Prototype Device 27361 | -5/Warlord | Identified Exp. Cloaking Device 27368 | -5/Warlord | Found Prototype Reactor 27692 | -5/Warlord | Spotted B-86 Titan 27695 | -5/Warlord | Spotted Executioner 27697 | -5/Warlord | Warlord forces counterattacked 27779 | -5/Warlord | Spotted Executioner 27850 | -5/Warlord | Spotted B-86 Titan 27859 | -5/Warlord | Discovered new exit (range 13) 27878 | -5/Warlord | Identified exit to Proximity Caves 27888 | -5/Warlord | Entered Proximity Caves 27961 | -4/Proximity Caves | Attracted the attention of an 0b10 checkpoint 28049 | -4/Proximity Caves | Spotted 3I-S1N(f) 28050 | -4/Proximity Caves | Encountered a Master Thief 28052 | -4/Proximity Caves | Spotted WZ-0KK(f) 28053 | -4/Proximity Caves | Encountered a Master Thief 28108 | -4/Proximity Caves | Build established: Hauler-Mutant 28135 | -4/Proximity Caves | Spotted B-86 Titan 28162 | -4/Proximity Caves | Destroyed B-86 Titan 28216 | -4/Proximity Caves | Spotted W5-7E0(f) 28219 | -4/Proximity Caves | Encountered a Master Thief 28219 | -4/Proximity Caves | Superbattery stolen by Master Thief 28223 | -4/Proximity Caves | Destroyed W5-7E0(f) 28307 | -4/Proximity Caves | Discovered new exit (range 10) 28347 | -4/Proximity Caves | Identified exit to Factory 28350 | -4/Proximity Caves | Entered Factory 28350 | -4/Factory | Evolved 2 slots: Power x1, Utility x1 28653 | -4/Factory | Build established: Hauler-Assassin 28779 | -4/Factory | Identified Vortex Chain Reactor 28903 | -4/Factory | Identified exit to Upper Caves 29881 | -4/Factory | Identified Exp. Target Analyzer 30294 | -4/Factory | Entered Upper Caves 30294 | -4/Upper Caves | Accompanied by 2 allies 30452 | -4/Upper Caves | Attracted the attention of an 0b10 checkpoint 30473 | -4/Upper Caves | Spotted PI-OFE(f) 30473 | -4/Upper Caves | Spotted OO-H5W(f) 30474 | -4/Upper Caves | Encountered a Master Thief 30474 | -4/Upper Caves | Encountered a Master Thief 30478 | -4/Upper Caves | Superbattery stolen by Master Thief 30483 | -4/Upper Caves | Vortex Chain Reactor stolen by Master Thief 30493 | -4/Upper Caves | Spotted 3R-MNW(f) 30495 | -4/Upper Caves | Encountered a Master Thief 30495 | -4/Upper Caves | Destroyed 3R-MNW(f) 30499 | -4/Upper Caves | Spotted KU-DF7(f) 30503 | -4/Upper Caves | Spotted H8-IZT(f) 30504 | -4/Upper Caves | Encountered a Master Thief 30504 | -4/Upper Caves | Destroyed H8-IZT(f) 30511 | -4/Upper Caves | Spotted 04-C07(f) 30511 | -4/Upper Caves | Spotted IS-AHR(f) 30513 | -4/Upper Caves | Encountered a Master Thief 30513 | -4/Upper Caves | Encountered a Master Thief 30514 | -4/Upper Caves | Helical Railgun stolen by Master Thief 30514 | -4/Upper Caves | Destroyed IS-AHR(f) 30519 | -4/Upper Caves | Spotted 8Y-5FI(f) 30520 | -4/Upper Caves | Encountered a Master Thief 30520 | -4/Upper Caves | Spotted X3-K17(f) 30521 | -4/Upper Caves | Encountered a Master Thief 30521 | -4/Upper Caves | Helical Railgun stolen by Master Thief 30531 | -4/Upper Caves | Encountered a Master Thief 30539 | -4/Upper Caves | Imp. Energy Mantle stolen by Master Thief 30850 | -4/Upper Caves | Discovered new exit (range 19) 30891 | -4/Upper Caves | Identified exit to Upper Caves 30892 | -4/Upper Caves | Entered another Upper Caves area 31002 | -4/Upper Caves | Found Alien Artifact 31002 | -4/Upper Caves | Identified Core Expander 31002 | -4/Upper Caves | Installed Core Expander, added new Utility slot 31590 | -4/Upper Caves | Learned Research emergency access door positions 31707 | -4/Upper Caves | Found Alien Artifact 31714 | -4/Upper Caves | Discovered new exit (range 42) 31812 | -4/Upper Caves | Identified exit to Zhirov 31814 | -4/Upper Caves | Entered Zhirov 31814 | -4/Zhirov | Discovered new exit (range 3) 31839 | -4/Zhirov | Met Zhirov 31866 | -4/Zhirov | Learned location of Quarantine (-3) 31866 | -4/Zhirov | Learned location of Testing (-2) 31866 | -4/Zhirov | Learned location of Command (-1) 31878 | -4/Zhirov | Zhirov requested help retrieving the SGEMP Prototype 31899 | -4/Zhirov | Found Alien Artifact 31899 | -4/Zhirov | Identified Integrated Dissipator 31899 | -4/Zhirov | Installed Integrated Dissipator, increased core heat dissipation (+20) 31966 | -4/Zhirov | Found Alien Artifact 32048 | -4/Zhirov | Build established: Hauler-Mutant 32053 | -4/Zhirov | Identified exit to Proximity Caves 32062 | -4/Zhirov | Entered Proximity Caves 32607 | -3/Proximity Caves | Spotted NP-FWC(f) 32609 | -3/Proximity Caves | Encountered a Master Thief 32611 | -3/Proximity Caves | Spotted C9-CJJ(f) 32612 | -3/Proximity Caves | Encountered a Master Thief 32612 | -3/Proximity Caves | Hvy. Treads stolen by Master Thief 32631 | -3/Proximity Caves | Alien Artifact stolen by Master Thief 32633 | -3/Proximity Caves | Destroyed C9-CJJ(f) 32656 | -3/Proximity Caves | Discovered new exit (range 7) 32661 | -3/Proximity Caves | Lost 3 parts (3u) 32663 | -3/Proximity Caves | Identified exit to Research 32667 | -3/Proximity Caves | Entered Research 32667 | -3/Research | Evolved 2 slots: Utility x2 32867 | -3/Research | Revision forces began assault on 0b10 32922 | -3/Research | Discovered new exit (range 8) 32944 | -3/Research | Identified exit to Research 33009 | -3/Research | Spotted B-86 Titan 33016 | -3/Research | Met up with Revision 17++ 33040 | -3/Research | Build established: Hacker-Assassin 33095 | -3/Research | Identified exit to Armory 33095 | -3/Research | Identified exit to Quarantine 33131 | -3/Research | Found Prototype Processor 33367 | -3/Research | Research terminal network offline 33789 | -3/Research | Found Prototype Device 33798 | -3/Research | Found Prototype Device 33826 | -3/Research | Identified System Purifier (x2) 33826 | -3/Research | Identified Exp. Melee Analysis Suite 33827 | -3/Research | Identified Transdimensional Reconstructor 33981 | -3/Research | Build established: Hauler-Skirmisher 34245 | -3/Research | Entered Quarantine 34305 | -3/Quarantine | Found Alien Artifact 34394 | -3/Quarantine | Destroyed 8 combat bots 34485 | -3/Quarantine | Found Alien Artifact 34501 | -3/Quarantine | Garrison activated, responded to threat 34712 | -3/Quarantine | Identified Phase Armor 34712 | -3/Quarantine | Identified Subatomic Replicator 34819 | -3/Quarantine | Found Alien Impact Weapon 34942 | -3/Quarantine | Build established: Hauler-Mutant 35179 | -3/Quarantine | P-80 Master assimilated allied Administrator 8a 35395 | -3/Quarantine | Found Alien Artifact 35533 | -3/Quarantine | Build established: Hauler-Tank 35616 | -3/Quarantine | Found Alien Artifact 35634 | -3/Quarantine | Spotted Alpha 7 35716 | -3/Quarantine | Destroyed Alpha 7 35720 | -3/Quarantine | Found Exp. Target Analyzer 35727 | -3/Quarantine | Identified Matter Drive 35741 | -3/Quarantine | Found Alien Launcher 35965 | -3/Quarantine | Cryocooling Duct disabled 35980 | -3/Quarantine | Ambient heat levels rising (+20) 35980 | -3/Quarantine | Non-combat units ordered to evacuate 36250 | -3/Quarantine | Found Alien Artifact 36538 | -3/Quarantine | Found Alien Artifact 36538 | -3/Quarantine | Identified Dimensional Node Initializer 36538 | -3/Quarantine | Initialized slip node 36541 | -3/Quarantine | Found Dimensional Node Initializer 36551 | -3/Quarantine | Found Transdimensional Reconstructor 36557 | -3/Quarantine | Found Alien Artifact 36557 | -3/Quarantine | Identified Hpw. Transdimensional Reconstructor 36557 | -3/Quarantine | Warped through subspace to slip node 36578 | -3/Quarantine | Found Hpw. Transdimensional Reconstructor 36581 | -3/Quarantine | Found Transdimensional Reconstructor 36647 | -3/Quarantine | Central database locked down 36764 | -3/Quarantine | System corruption reached 10% 36942 | -3/Quarantine | Entered Research 36942 | -2/Research | Warlord forces began assault on 0b10 36942 | -2/Research | Evolved 2 slots: Utility x2 36943 | -2/Research | Identified exit to Testing 36993 | -2/Research | Identified Phase Redirector 36993 | -2/Research | Identified Core Reset Matrix 36993 | -2/Research | Identified Core Stripper 36993 | -2/Research | Identified Sigix Terminator 37010 | -2/Research | Met up with Warlord 37023 | -2/Research | Identified exit to Access 37052 | -2/Research | Research machine network offline 37177 | -2/Research | Spotted B-90 Cyclops 37237 | -2/Research | Spotted Striker 37262 | -2/Research | Borebot progress halted 37308 | -2/Research | P-80 Master assimilated allied LZ-MW6(S) 37308 | -2/Research | Spotted Executioner 37374 | -2/Research | Borebot progress halted 37401 | -2/Research | Spotted GU-VJU(L) 37402 | -2/Research | Borebot progress halted 37412 | -2/Research | Destroyed GU-VJU(L) 37454 | -2/Research | Spotted Striker 37456 | -2/Research | Spotted Striker 37468 | -2/Research | Destroyed Striker 37476 | -2/Research | Destroyed Striker 37547 | -2/Research | Warped through subspace 37780 | -2/Research | Found Prototype Device 38244 | -2/Research | Spotted Executioner 38245 | -2/Research | Spotted Striker 38251 | -2/Research | Destroyed Executioner 38259 | -2/Research | Destroyed Striker 38315 | -2/Research | Spotted Striker 38319 | -2/Research | Destroyed Striker 38365 | -2/Research | Found Prototype Processor 38368 | -2/Research | Found Prototype Processor 38387 | -2/Research | Warlord destroyed during the assault 38388 | -2/Research | Identified Exp. Targeting Computer 38389 | -2/Research | Identified Exp. Core Analyzer 38703 | -2/Research | Build established: Hauler-Gunner 38924 | -2/Research | Entered Testing 39043 | -2/Testing | Destroyed LX-H6Z(H) 39044 | -2/Testing | P-80 Master assimilated allied A0-ULH(B) 39046 | -2/Testing | Spotted A0-ULH(B) 39626 | -2/Testing | Spotted PL-AQ4LOFRBSF 39758 | -2/Testing | Spotted Fortress 39788 | -2/Testing | Destroyed Fortress 39794 | -2/Testing | Found EM Dispersion Field 39806 | -2/Testing | Found Vortex Chain Reactor 39810 | -2/Testing | Found Vortex Chain Reactor 39817 | -2/Testing | Found Thermal Barrier 39820 | -2/Testing | Found Prototype Device 39821 | -2/Testing | Identified Exp. Force Field 39922 | -2/Testing | Used Core Reset Matrix 39924 | -2/Testing | First assault squad dispatched 39940 | -2/Testing | Discovered new exit (range 6) 39947 | -2/Testing | Identified exit to Section 7 40031 | -2/Testing | Build established: Hauler-Mutant 40060 | -2/Testing | Entered Section 7 40061 | -2/Section 7 | Sensed 20 artifacts in vicinity 40081 | -2/Section 7 | Found Integrated Dissipator 40081 | -2/Section 7 | Installed Integrated Dissipator, increased core heat dissipation (+20) 40101 | -2/Section 7 | Spotted S7 Guard 40139 | -2/Section 7 | Destroyed S7 Guard 40152 | -2/Section 7 | Found Prototype Protection 40152 | -2/Section 7 | Identified Hvy. Regenerative Plating 40182 | -2/Section 7 | Used Subatomic Replicator to replicate Integrated Singularity Reactor 40184 | -2/Section 7 | Found Integrated Singularity Reactor 40184 | -2/Section 7 | Installed Integrated Singularity Reactor, increased core energy generation (+20) 40187 | -2/Section 7 | Installed Integrated Singularity Reactor, increased core energy generation (+20) 40424 | -2/Section 7 | Spotted S7 Guard 40433 | -2/Section 7 | Found Integrated Heat Negator 40433 | -2/Section 7 | Installed Integrated Heat Negator, increased core heat dissipation (+40) 40469 | -2/Section 7 | Spotted S7 Guard 40484 | -2/Section 7 | Found Core Membrane 40484 | -2/Section 7 | Installed Core Membrane, gained immunity to corruption 40493 | -2/Section 7 | Destroyed S7 Guard 40518 | -2/Section 7 | Destroyed S7 Guard 40557 | -2/Section 7 | Found Integrated Reactor 40557 | -2/Section 7 | Installed Integrated Reactor, increased core energy generation (+10) 40706 | -2/Section 7 | Found Integrated Dissipator 40706 | -2/Section 7 | Installed Integrated Dissipator, increased core heat dissipation (+20) 40780 | -2/Section 7 | Spotted B-90 Cyclops 40853 | -2/Section 7 | Found Integrated Reactor 40853 | -2/Section 7 | Installed Integrated Reactor, increased core energy generation (+10) 40854 | -2/Section 7 | Warped through subspace 40854 | -2/Section 7 | Discovered exit to Access (range 4) 40866 | -2/Section 7 | Entered Access 40866 | -1/Access | Evolved 2 slots: Utility x2 41171 | -1/Access | Spotted B-99 Colossus 41193 | -1/Access | Build established: Alien-Mutant 41334 | -1/Access | Central database locked down 41385 | -1/Access | Discovered new exit (range 7) 41416 | -1/Access | Identified exit to Command 41421 | -1/Access | Entered Command 41886 | -1/Command | Spotted Combat Programmer 41961 | -1/Command | Met MAIN.C 41963 | -1/Command | 0b10 Conduit disabled 42360 | -1/Command | Build established: Alien-Gunner 42565 | -1/Command | Destroyed 10 combat bots 42841 | -1/Command | Spotted B-99 Colossus 43949 | -1/Command | Spotted M Guard 43949 | -1/Command | Spotted M Guard 43949 | -1/Command | Spotted Combat Programmer 43963 | -1/Command | Destroyed M Guard 44001 | -1/Command | Destroyed M Guard 44017 | -1/Command | Destroyed Combat Programmer 44032 | -1/Command | Destroyed Combat Programmer 44032 | -1/Command | All MAIN.C guards destroyed 44055 | -1/Command | Found Hvy. Regenerative Plating 44064 | -1/Command | Found Prototype Device 44064 | -1/Command | Identified AEGIS Remote Shield 44072 | -1/Command | Found Hvy. Regenerative Plating 44080 | -1/Command | Found AEGIS Remote Shield 44091 | -1/Command | Found Prototype Reactor 44091 | -1/Command | Identified Zero-point Reactor 44626 | -1/Command | Destroyed MAIN.C Shell 44628 | -1/Command | MAIN.C activated Command garrisons 44650 | -1/Command | Destroyed MAIN.C 45058 | -1/Command | Build established: Alien-Mutant 45342 | -1/Command | Discovered new exit (range 14) 45493 | -1/Command | Build established: Scavenger-Gunner 45854 | -1/Command | Found Unknown Device 45854 | -1/Command | Identified Launcher Loader 46413 | -1/Command | Spotted B-99 Colossus 46506 | -1/Command | Found Prototype Device 46506 | -1/Command | Identified Exp. Phase Shifter 46510 | -1/Command | Found Prototype Device 46510 | -1/Command | Identified Exp. Focal Shield 46520 | -1/Command | Found Prototype Processor 46520 | -1/Command | Identified Exp. Melee Analysis Suite 47539 | -1/Command | Found Unknown Device 47548 | -1/Command | Identified Antimissile System 47621 | -1/Command | Build established: Alien-Gunner 47790 | -1/Command | Found Prototype Device 47791 | -1/Command | Identified Adv. Kinecellerator 47811 | -1/Command | Discovered new exit (range 8) 49638 | -1/Command | Found Prototype Launcher 49657 | -1/Command | Identified Hellfire Missile Launcher 50416 | -1/Command | Destroyed B-99 Colossus 50430 | -1/Command | Found Prototype Ballistic Gun 50434 | -1/Command | Found Prototype Ballistic Gun 50455 | -1/Command | Identified Multirail (x2) 50732 | -1/Command | Found Vortex Chain Reactor 50735 | -1/Command | Found Zero-point Reactor 51146 | -1/Command | Found Exp. Focal Shield 51457 | -1/Command | Warped through subspace to slip node 51457 | -1/Command | Discovered new exit (range 5) 51469 | -1/Command | Entered Access_0 51470 | -1/Access_0 | Sensed 4 artifacts in vicinity 51472 | -1/Access_0 | Met Architect 51486 | -1/Access_0 | Architect warped through subspace 51500 | -1/Access_0 | Destroyed A8 51536 | -1/Access_0 | Architect warped through subspace 51564 | -1/Access_0 | Subspace Access Node disabled 51577 | -1/Access_0 | Architect warped through subspace 51624 | -1/Access_0 | Architect warped through subspace 51666 | -1/Access_0 | Architect warped through subspace 51697 | -1/Access_0 | Architect warped through subspace 51744 | -1/Access_0 | Architect warped through subspace 51783 | -1/Access_0 | Architect warped through subspace 51807 | -1/Access_0 | Found Exp. Targeting Computer 51811 | -1/Access_0 | Found Exp. Phase Shifter 51829 | -1/Access_0 | Architect warped through subspace 51836 | -1/Access_0 | Found Prototype Device 51836 | -1/Access_0 | Identified Exp. Weapon Cycler 51840 | -1/Access_0 | Found Exp. Weapon Cycler 51846 | -1/Access_0 | Found Exp. Targeting Computer 51870 | -1/Access_0 | Architect warped through subspace 51889 | -1/Access_0 | A6 warped into view 51901 | -1/Access_0 | Architect warped through subspace 51910 | -1/Access_0 | Destroyed A6 51925 | -1/Access_0 | Architect warped through subspace 51949 | -1/Access_0 | Architect warped through subspace 51979 | -1/Access_0 | Architect warped through subspace 51997 | -1/Access_0 | Architect warped through subspace 52014 | -1/Access_0 | Architect warped through subspace 52028 | -1/Access_0 | Architect warped through subspace 52055 | -1/Access_0 | Architect warped through subspace 52069 | -1/Access_0 | Architect warped through subspace 52079 | -1/Access_0 | Found Prototype Device 52088 | -1/Access_0 | Found Prototype Device 52104 | -1/Access_0 | Architect warped through subspace 52140 | -1/Access_0 | Architect warped through subspace 52150 | -1/Access_0 | Found Exp. Targeting Computer 52156 | -1/Access_0 | Architect warped through subspace 52156 | -1/Access_0 | Core integrity fell below 50% 52157 | -1/Access_0 | Lost 4 parts (1n3w) 52164 | -1/Access_0 | Subspace Access Node disabled 52168 | -1/Access_0 | Found Exp. Targeting Computer 52172 | -1/Access_0 | Architect warped through subspace 52199 | -1/Access_0 | Architect warped through subspace 52206 | -1/Access_0 | Identified Desublimator (x2) 52226 | -1/Access_0 | Architect warped through subspace 52229 | -1/Access_0 | Subspace Access Node disabled 52245 | -1/Access_0 | Architect warped through subspace 52264 | -1/Access_0 | Found Exp. Weapon Cycler 52269 | -1/Access_0 | Architect warped through subspace 52291 | -1/Access_0 | Architect warped through subspace 52306 | -1/Access_0 | Architect warped through subspace 52374 | -1/Access_0 | Subspace Access Node disabled 52393 | -1/Access_0 | Emitted hypermatrix ping 52398 | -1/Access_0 | Assembled emerged from beneath the floor 52399 | -1/Access_0 | Allies destroyed Architect 52400 | -1/Access_0 | Architect triggered a singularity event 52401 | -1/Access_0 | Released all parts (20) 52402 | -1/Access_0 | Found Hpw. Transdimensional Reconstructor 52402 | -1/Access_0 | Warped through subspace to slip node 52402 | -1/Access_0 | Discovered new exit (range 8) 52406 | *** | Escaped singularity! Last Messages --------------- 52401_ Released Adv. Heavy Treads. 52401_ Released Hvy. Regenerative Plating. 52401_ Released Hcp. Storage Unit. 52401_ Released Exp. Target Analyzer. 52401_ Released Adv. Armor Integrity Analyzer. 52401_ Released AEGIS Remote Shield. 52401_ AEGIS Remote Shield crushed and broken. 52401_ Released Vortex Chain Reactor. 52401_ Vortex Chain Reactor crushed and broken. 52401_ Released Exp. Targeting Computer. 52401_ Released Phase Armor. 52401_ Phase Armor crushed and broken. 52402_ A0_COM: 9. 52402_ Acquired Hpw. Transdimensional Reconstructor. 52402_ Warped through subspace, drawn to slip node. 52402_ EXIT=FOUND 52403_ A0_COM: 8. 52404_ A0_COM: 7. 52405_ A0_COM: 6. 52406_ A0_COM: 5. Map ----- +----------------------------------------------------+ | | | | | | | | | | | | | | | | | | | | | | | | | | | | | | | | | ?????????????????????????????????????????????????? | | ?????????????????????????????????????????????????? | | ?????????????????????????????????????????????????? | | ?????????????????????????????????????????????????? | | ?????????????????????????????????????????????????? | | ?????????????????????????????????????????????????? | | ????????????????????????###??????????????????????? | | ???????????????????????## ##?????????????????????? | | ???????????????????????# #?????????????????????? | | ???????????????????????# @ #?????????????????????? | | ??????????????????????## #?????????????????????? | | ??????????????????????# #?????????????????????? | | ??????????????????????# ##?????????????????????? | | ??????????????????????## #?????????????????????? | | ??????????????????????# #?????????????????????? | | ??????????????????????# ##?????????????????????? | | ??????????????????????# < #?????????????????????? | | ??????????????????????# ##?????????????????????? | | ??????????????????????## #??????????????????????? | | ???????????????????????####??????????????????????? | | ?????????????????????????????????????????????????? | | ?????????????????????????????????????????????????? | | ?????????????????????????????????????????????????? | | ?????????????????????????????????????????????????? | | ?????????????????????????????????????????????????? | | ?????????????????????????????????????????????????? | | ?????????????????????????????????????????????????? | | ?????????????????????????????????????????????????? | | ?????????????????????????????????????????????????? | | ?????????????????????????????????????????????????? | | ?????????????????????????????????????????????????? | | ?????????????????????????????????????????????????? | | ?????????????????????????????????????????????????? | | ?????????????????????????????????????????????????? | +----------------------------------------------------+ Best States ------------- Heat Dissipation 190 Coolant Potential 120 Energy Generation 115 Energy Capacity 4700 Matter Stores 659 Matter Capacity 800 Sight Range 16 Robot Scan Range 20 Terrain Scan Range 24 Terrain Scan Density 60 Jamming Range 16 Additional Mass Support 20 Corruption Prevention 12 Heat Shielding 100 Armor Coverage 2400 Resistance: KI 30 Resistance: TH 50 Resistance: EM 90 Propulsion Shielding 90 Utility Shielding 66 Weapon Shielding 90 Weapon Cycling 30 Phase Shifting 20 Evasion (%) 60 Targeting Accuracy 36 Target Analysis 12 Core Analysis 15 Armor Integrity Analysis 66 Recoil Reduction 4 Matter Filtering 30 Kinecelleration 50 Offensive Hacking 42 Defensive Hacking 12 Item Schematics ----------------- None Robot Schematics ------------------ None Fabricated ------------ Nothing Alien Tech Used ----------------- Core Expander Integrated Dissipator Matter Drive Dimensional Node Initializer High-powered Transdimensional Reconstructor Core Stripper Core Reset Matrix Subatomic Replicator Integrated Singularity Reactor Integrated Heat Negator Core Membrane Integrated Reactor Transdimensional Reconstructor Phase Redirector Phase Armor Achievements -------------- None Challenges ------------ None Game ------ Seed ColdSalvageNullifier Manual? 0 Play Time 06:00:36 Cumulative 1721.6 hours Start 2020.10.22 @ 09:20:02 End 2020.10.23 @ 00:47:50 Sessions 7 Manual Loads 0 Difficulty Rogue Special Mode None Game No. 2495 Rogue 2488 Adventurer 0 Explorer 7 Win Type 6 Total 166 Types 41/23/64/3/3/5/24/2/1 Lore% 99 Gallery% 99 Achievement% 100 Wizard Run 0 Options --------- ASCII 0 Keyboard 1 Movement Numpad Keybinds 1 Fullscreen 1 Font 18/SmallcapsGlow Map View 76x50 Tactical HUD 1 Map Filters NONE Filters NONE Steam 1 RUN: af5dd17c-f085-4f45-a734-cdf3a5273564